Workbook

Sheet InputSheet
A1: Parameter | B1: Units | C1: Type | D1: Default | E1: *selected* | F1: end
A2: Rail Name | C2: Req | E2: tes
A3: Part Number | C3: Req | E3: TPSM843B22
A4: Vin_min | B4: V | C4: Opt | D4: Vin_nom*0.8 | E4: 10
A5: Vin_nom | B5: V | C5: Req | E5: 12 | G5: Sheet Descriptions:
A6: Vin_max | B6: V | C6: Opt | D6: Vin_nom*1.1 | E6: 13.2 | G6: InputSheet = sheet with simplified input for checking component values with the macros described below
A7: Vout | B7: V | C7: Req | E7: 1.2 | G7: DeviceCalculator = sheet where all calculations are done. This sheet can be used by itself to select or check component values.
A8: Iout | B8: A | C8: Opt | D8: Io_max_IC | E8: 12
A9: dVo_trans | C9: Opt | D9: Vout*0.05 | E9: 0.024 | G9: Macro Directions:
A10: dVo_dc | C10: Opt | D10: Vout*0.01 | E10: 0.012 | G10: Check/Calculate Selected Column
A11: Io_step | B11: A | C11: Opt | D11: Iout*0.5 | E11: 6 | G11: Select any cell in the column of the design you would like to check.
A12: R_fsel | C12: Opt | D12: R_fsel_rec | E12: 11.8 | G12: Click on the Check/Calculate to send the input values to the DeviceCalculator worksheet.
A13: fsw_select | C13: Calc | E13: 1000 | G13: The calculated results on the DeviceCalculator worksheet are then pulled back to this sheet to check the component values used.
A14: Isat | C14: Opt | E14: 20
A15: Inductor_Part_Number | C15: Opt | E15: TBD
A16: Ipeak_max | B16: A | C16: Calc | E16: 14.0661157 | G16: To delete a design that is no longer needed, right click on the column letter then select delete.
A17: N_Cout_cer | C17: Opt | D17: 1 | E17: 6
A18: Cout_single_cer | B18: mΩ | C18: Opt | D18: Cout_min | E18: 100 | G18: Pull Values from DeviceCalculator Sheet
A19: Cer_derating | C19: Opt | D19: 0.8 | E19: 0.8 | G19: The DeviceCalculator worksheet has more details to aid in the design.
A20: Cer_Voltage_Rating | C20: Opt | E20: 6.3
A21: Ceramic_RMS_current | C21: Opt | E21: 3
A22: ESR_single_cer | B22: µF | C22: Opt | D22: 1 | E22: 3 | G22: Updates to the design can be mode in the DeviceCalculator sheet.
A23: N_Cout_bulk | C23: Opt | D23: 0 | E23: 0 | G23: After making updates, click on Pull Values to use the values on the DeviceCalculator sheet and check them.
A24: Cout_single_bulk | B24: µF | C24: Opt | D24: 0.1 | E24: 0.1
A25: ESR_single_bulk | B25: mΩ | C25: Opt | D25: 1 | E25: 1 | G25: Check/Calculate All Columns
A26: Bulk_Voltage_Rating
A27: Cout | B27: µF | C27: Calc | E27: 481 | G27: This will run Check/Calculate Selected Column on all designs
A28: Vo_trans | B28: mV | C28: Calc | E28: 19.85300746
A29: Vo_overshoot | B29: mV | C29: Calc | E29: 10.29106029 | G29: Insert New Design
A30: Vo_ripple | B30: mV | C30: Calc | E30: 2.469823951 | G30: Click on Insert New Design to add another column to check another design.
A31: Vi_ripple_perc | C31: Opt | D31: 0.04 | E31: 0.04
A32: Cin | B32: µF | C32: Opt | D32: Cin_min | E32: 25.08
A33: Cin_derating | C33: Opt | D33: 0.5 | E33: 0.5
A34: Cin_RMS_currentrating | C34: Opt | E34: =
A35: Cin_Voltage_Rating | C35: Opt | E35: =
A36: Vi_ripple | B36: mV | C36: Calc | E36: 39.54288426
A37: Rfb_b | B37: kΩ | C37: Opt | D37: Rfb_b_rec | E37: 8
A38: Rfb_t | B38: kΩ | C38: Opt | D38: Rfb_t_std | E38: 11.2
A39: Vout_calc | B39: V | C39: Calc | E39: 1.2
A40: Cff | B40: pF | C40: Opt | D40: Cff_rec_std | E40: 100
A41: Rff | B41: kΩ | C41: Opt | D41: Rff_rec_std | E41: 0
A42: R_msel | B42: kΩ | C42: Opt | D42: R_msel_rec | E42: 102
A43: I_lim_sel | C43: Calc | E43: Low
A44: Ramp_sel | B44: pF | C44: Calc | E44: 2
A45: SS_sel | B45: ms | C45: Calc | E45: 8
A46: Ren_t | B46: kΩ | C46: Opt | D46: 0 | E46: 0
A47: Ren_b | B47: kΩ | C47: Opt | D47: =10^4 -> 10000 | E47: 10000
A48: Vstart_typ | B48: V | C48: Calc | E48: 1.2
A49: Vstop_typ | B49: V | C49: Calc | E49: 1.1
A50: Cbp | B50: µF | C50: Opt | D50: Cbp_rec | E50: 2.2
A51: Cboot | B51: µF | C51: Opt | D51: Cboot_rec | E51: 0.1
A52: Rboot | B52: Ω | C52: Opt | D52: Rboot_rec | E52: 0
A53: Rpg | B53: kΩ | C53: Opt | D53: Rpg_rec | E53: 100
A54: Rfsel_check | C54: Check | E54: Pass
A55: Lout_check | C55: Check | E55: Pass
A56: Cout_check | C56: Check | E56: Pass
A57: Cin_check | C57: Check | E57: Pass
A58: FB_network_check | C58: Check | E58: Caution: If not already included, recommend adding a 0-Ohm placeholder for Rff. This can help improve load regulation in case of non-ideal AGND to PGND connection in the PCB layout. Based on input Rfb_t, suggested value is 0.56kOhm.
A59: Rmsel_check | C59: Check | E59: Pass
A60: EN_divider_check | C60: Check | E60: Pass
A61: Cbp_Cboot_Rpg_check | C61: Check | E61: Warning: Change Cbp. Value is not within 1 µF to 4.7 µF recommended range. Caution: Suggest including a 0Ohm Rboot in the schematic for prototype designs. A 2.2Ohm resistor can reduce SW node voltage overshoot. This is optional.

Sheet DeviceCalculator
B1: Design Calculations | J1: Key
B2: Parameter | C2: Input | D2: Recommended | E2: Selected Value | F2: Calculated with Selected Value | G2: Units | H2: Description | J2: User Entered Value
J3: Fixed IC Parameter
J4: Calculated Parameter
J5: Recommended Component Value
J6: Design Caution
J7: Design Warning
B8: Choose Device
B9: Part number | C9: TPSM843B22 | H9: Select IC part number
B10: Vin_min_IC | C10: =VLOOKUP($C$9,partData!$A$3:$AAA$17,2,FALSE) -> 4 | G10: V | H10: IC rated minimum input voltage
B11: Vin_max_IC | C11: =VLOOKUP($C$9,partData!$A$3:$AAA$17,3,FALSE) -> 18 | G11: V | H11: IC rated maximum input voltage
B12: Vref | C12: =VLOOKUP($C$9,partData!$A$3:$AAA$17,9,FALSE) -> 0.5 | G12: V | H12: Internal voltage reference
B13: Io_max_IC | C13: =VLOOKUP($C$9,partData!$A$3:$AAA$17,4,FALSE) -> 20 | G13: A | H13: IC rated maximum output current
B14: EN_rise | C14: =VLOOKUP($C$9,partData!$A$3:$AAA$17,12,FALSE) -> 1.2 | G14: V | H14: EN rising voltage threshold
B15: EN_rise_max | C15: =VLOOKUP($C$9,partData!$A$3:$AAA$17,17,FALSE) -> 1.25 | G15: V | H15: EN rising voltage threshold (maximum spec)
B16: EN_fall | C16: =VLOOKUP($C$9,partData!$A$3:$AAA$17,13,FALSE) -> 1.1 | G16: V | H16: EN falling voltage threshold
B17: Ip | C17: =VLOOKUP($C$9,partData!$A$3:$AAA$17,14,FALSE) -> 1.5e-06 | G17: A | H17: EN pull up current
B18: Ip2 | C18: =VLOOKUP($C$9,partData!$A$3:$AAA$17,15,FALSE) -> 1.16e-05 | G18: A | H18: EN pul up + hystersis current
B19: Ih | C19: =VLOOKUP($C$9,partData!$A$3:$AAA$17,16,FALSE) -> 1.01e-05 | G19: A | H19: EN hystersis current
B20: OC_high_min | C20: =VLOOKUP($C$9,partData!$A$3:$AAA$17,5,FALSE) -> 26.1 | G20: A | H20: Minimum peak current limit for High current limits
B21: OC_low_min | C21: =VLOOKUP($C$9,partData!$A$3:$AAA$17,6,FALSE) -> 20.7 | G21: A | H21: Minimum peak current limit for Low current limits
B22: ton_min_max | C22: =VLOOKUP($C$9,partData!$A$3:$AAA$17,7,FALSE) -> 40 | G22: ns | H22: Worst case minimum on-time
B23: toff_min_max | C23: =VLOOKUP($C$9,partData!$A$3:$AAA$17,8,FALSE) -> 140 | G23: ns | H23: Worst case minimum off-time
B24: Vout Maximum | C24: =VLOOKUP($C$9,partData!$A$3:$AAA$17,20,FALSE) -> 7
B25: Rdson_HS | C25: =VLOOKUP($C$9,partData!$A$3:$AAA$17,10,FALSE) -> 6.5 | G25: mΩ | H25: High-side FET Rdson
B26: Rdson_LS | C26: =VLOOKUP($C$9,partData!$A$3:$AAA$17,11,FALSE) -> 2 | G26: mΩ | H26: Low-side FET Rdson
B27: Input System Parameters
B28: Vin_min | C28: 10 | G28: V | H28: Minimum input voltage
B29: Vin_nom | C29: 12 | G29: V | H29: Nominal input voltage
B30: Vin_nom | C30: 12 | G30: V | H30: Nominal input voltage
B31: Vin_max | C31: 13.2 | G31: V | H31: Maximum input voltage
B32: Vout | C32: 1.2 | G32: V | H32: Output voltage
B33: Iout | C33: 12 | G33: A | H33: Maximum output current
B34: E12 Resistor Values? | C34: No | H34: If using E12 resistor values, tolerance still must be 1%
B35: Select the Switching Frequency (FSEL pin)
B36: fsw_typ_ton | D36: =IF((1/(ton_min_max*10^-9))*(Vout)/(Vin_max)*1/1>=2.2*10^6,2.2*10^6,(1/(ton_min_max*10^-9))*(Vout)/(Vin_max)*1/1)*10^-3 -> 2200 | G36: kHz | H36: Maximum fsw limited by Vin_max and minimum on-time
B37: fsw_max_ton | D37: =IF((1/(ton_min_max*10^-9))*(Vout)/(Vin_max)*1/1.1>=2.2*10^6,2.2*10^6,(1/(ton_min_max*10^-9))*(Vout)/(Vin_max)*1/1.1)*10^-3 -> 2066.115702 | G37: kHz | H37: Maximum fsw limited by Vin_max and minimum on-time
B38: fsw_max_toff | D38: =IF((Vin_min-Vout-Iout*2*(DCR_Ohm+Rdson_HS_Ohm))/(toff_min_max_sec*(Vin_min-Iout*2*(Rdson_HS_Ohm-Rdson_LS_Ohm)))*10^-3>=2200,2200,(Vin_min-Vout-Iout*2*(DCR_Ohm+Rdson_HS_Ohm))/(toff_min_max_sec*(Vin_min-Iout*2*(Rdson_HS_Ohm-Rdson_LS_Ohm)))*10^-3) -> 2200 | G38: kHz | H38: Maximum fsw allowed limited by Vin_min and minimum off-time (Depends on inductor DCR and includes 2x multiplier on resistance for margin, if red check input voltage levels)
B39: fsw_rec | D39: =MIN(1000,VLOOKUP(TRUE,partData!K22:L26,2,FALSE)) -> 1000 | G39: kHz | H39: Recommended max fsw setting
B40: fsw_input | C40: 1000 | G40: kHz | H40: Select the fsw option
B41: R_fsel_rec | D41: =IF(C34="No", VLOOKUP(C40,partData!E21:G26,2,0), VLOOKUP(C40,partData!E21:G26,3,0)) -> 11.8 | G41: kΩ | H41: Recommended FSEL resistor for selected fsw
B42: R_fsel | E42: 11.8 | G42: kΩ | H42: Selected FSEL resistor value
B43: fsw_select | F43: =IF(OR(partData!J22:J26),VLOOKUP(TRUE,partData!J22:L26,3,FALSE),"Invalid R_fsel") -> 1000 | G43: kHz | H43: fsw with selected FSEL resistor (if red check input voltages)
B44: Choose the Output Inductor (Lout)
B45: The inductance is selected based on a p-p ripple current target. Smaller L reduces solution size while larger L reduces AC loss.
B46: Kind | C46: 0.3 | H46: Target ripple/Iout ratio (typically between 0.2 to 0.4)
B47: L_target | D47: =(1/(Kind*Iout*(fsw_select/1000))*(((Vin_max-Vout)*Vout)/Vin_max)) -> 0.303030303 | G47: µH | H47: Target inductor value
B48: L_min | D48: =((Vin_max-Vout)*Vout)/(Io_max_IC*0.5*Vin_max*fsw_select)*1000 -> 0.1090909091 | G48: µH | H48: Minimum recommended inductance (ripple = 50% Iout_max_IC)
B49: L_max | D49: =((Vin_max-Vout)*Vout)/(Io_max_IC*0.05*Vin_max*fsw_select)*1000 -> 1.090909091 | G49: µH | H49: Maximum recommended inductance (ripple = 5% Iout_max_IC)
B50: L_rec | D50: =MIN(MAX(D48,D47),D49) -> 0.303030303 | G50: µH | H50: Recommended inductor value
B51: Lout | C51: =VLOOKUP($C$9,partData!$A$3:$AAA$17,21,FALSE) -> 0.33 | D51: =VLOOKUP($C$9,partData!$A$3:$AAA$17,21,FALSE) -> 0.33 | G51: µH | H51: Selected inductance
B52: DCR | C52: =VLOOKUP($C$9,partData!$A$3:$AAA$17,22,FALSE) -> 3.2 | D52: =VLOOKUP($C$9,partData!$A$3:$AAA$17,22,FALSE) -> 3.2 | G52: mΩ | H52: DC resistance of selected inductor
B53: Tol_L | C53: =VLOOKUP($C$9,partData!$A$3:$AAA$17,23,FALSE) -> 0.2 | D53: =VLOOKUP($C$9,partData!$A$3:$AAA$17,23,FALSE) -> 0.2 | H53: Tolerance of inductance for selected inductor
B54: Isat | E54: 20 | H54: Inductor Saturation Current
B55: Inductor_Part_Number | E55: TBD | H55: Inductor Part Number
B56: Iripple_max | F56: =1000*((Vin_max-Vout)*Vout)/(Lout*(1-Tol_L)*Vin_max*fsw_select) -> 4.132231405 | G56: A | H56: Inductor ripple current at Vin_max (includes Tol_L, used for DC ripple calculations) (Red if >50% of Iout rate)
B57: Ipeak_max | F57: =Iout+(Iripple_max/2) -> 14.0661157 | G57: A | H57: Full load peak current at Vin_max
B58: Irms | F58: =SQRT(Iout^2+Iripple_max^2) -> 12.69154586 | G58: A | H58: Inductor rms current at Vin_max
B59: Iripple_min | F59: =1000*((Vin_min-Vout)*Vout)/(D51*(1+D53)*Vin_min*fsw_select) -> 2.666666667 | H59: Inductor ripple current at Vin_min (includes Tol_L)
B60: Ivalley | F60: =Iout-(Iripple_min/2) -> 10.66666667 | G60: A | H60: Full load valley current at Vin_min (used for I_lim calculations)
B61: Select the Soft Start Time, Current Limit and Ramp (MSEL pin)
B62: I_lim_rec | D62: =IF(F57>OC_low_min, "High", "Low") -> Low | H62: Recommended Ilim selection
B63: I_lim_tgt | C63: Low | H63: Target Ilim
B64: fsw_div_fLC | D64: =IF(f_ESR_bulk>fsw_select/10,fsw_select/f_LC,fsw_select/(1/(2*PI()*SQRT(Lout_H*Cout_cer_eff_F))*10^-3)) -> 79.16065453 | H64: Used to set ramp recommendation
B65: Ramp_tgt | C65: 2 | G65: pF | H65: Target ramp
B66: Soft_start_time_tgt | C66: 8 | G66: ms | H66: Target soft start time
B67: R_msel_rec | D67: =IF(C34="No", VLOOKUP(CONCATENATE(C63, C65, C66),partData!N19:T44, 6, 0), VLOOKUP(CONCATENATE(C63, C65, C66),partData!N19:T44, 7, 0)) -> 102 | G67: kΩ | H67: Recommended MSEL pin resistance value
B68: Ramp_rec | D68: =partData!E37 -> 2 | G68: pF | H68: Recommended ramp selection from Choose the Output Capacitor (Cout)section
B69: R_msel | E69: 102 | G69: kΩ | H69: Selected MSEL pin resistance value
B70: I_lim_sel | F70: =IF(partData!Z$44,VLOOKUP(TRUE,partData!Z19:AC43,2,FALSE),"Invalid Rmsel") -> Low | H70: Selected Ilim
B71: Ramp_sel | F71: =IF(partData!Z$44,VLOOKUP(TRUE,partData!Z19:AC43,3,FALSE),"Invalid Rmsel") -> 2 | G71: pF | H71: Selected ramp
B72: SS_sel | F72: =IF(partData!Z$44,VLOOKUP(TRUE,partData!Z19:AC43,4,FALSE),"Invalid Rmsel") -> 8 | G72: ms | H72: Selected soft start time
B73: Choose the Output Capacitor (Cout)
B74: The output capacitance is deteremind based on the output ripple, transient and stability requirements. These calculations do not support mixed type output capacitors.
B75: Io_step | C75: 6 | G75: A | H75: Iout load transient step
B76: dVo_perc transient (%) | C76: 5 | G76: % | H76: dVo percent
B77: dVo_trans | D77: 0.024 | G77: V | H77: Target Vout overshoot/undershoot after load step
B79: Vo ripple (%) | C79: 1 | H79: % Steady State Ripple
B80: dVo_dc | D80: 0.012 | G80: V | H80: Target steady state Vout voltage ripple
B82: Icorms | D82: =(1/(12)^0.5)*(12-1)/(12*Lout*10^-6*1000000) -> 0.8018753739 | H82: Output Capacitor RMS Current
B83: Cout Preferred | C83: 100 | E83: =C83 -> 100 | G83: uF | H83: Preferred Capacitor for Cout
B84: Resr | C84: 1.425 | D84: =1/(2*PI()*fco_desired*5*C83*10^-6*C86) -> 0.003183098862 | E84: =C84 -> 1.425 | G84: mOhm | H84: ESR of single capacitor
B85: Voltage Rating | C85: 6.3 | E85: =C85 -> 6.3 | G85: V
B86: Derating | C86: 0.8 | E86: =C86 -> 0.8 | G86: %
B87: Cramp (start) | C87: 2 | G87: pF | H87: Start with largest Cramp for highest bandwidth
B88: tcramp() | F88: =C87*10^-12*10^6/(VLOOKUP(F43,partData!I50:L54,3,FALSE)-(VLOOKUP(fsw_select,partData!I50:L54,4,FALSE)*Vout/C30))*1 -> 3.032140691e-06
B89: Vcramp eq5 | F89: =C30*((C32/C30)*(1/(F43*1000)+0.0000001)/F88) -> 0.435336 | H89: keep ramp voltage less than 1.25V
B90: Ramp_rec | D90: =partData!Q85 -> 2 | H90: Recommened Ramp value using Transient Method
B91: Ramp_Selected | E91: 2
B92: tcramp() | F92: =E91*10^-12*10^6/(VLOOKUP(F43,partData!I50:L54,3,FALSE)-(VLOOKUP(fsw_select,partData!I50:L54,4,FALSE)*Vout/C30))*1 -> 3.032140691e-06
B93: Vcramp eq5 | F93: =C30*((C32/C30)*(1/(F43*1000)+0.0000001)/F92) -> 0.435336 | G93: V | H93: keep ramp voltage less than 1.25V
B94: Fco_desired | C94: 1/8 | F94: =VLOOKUP(C94,partData!I59:J66,2,FALSE)*DeviceCalculator!fsw_Hz -> 125000 | G94: Hz | H94: set to 1/8 to 1/4 of fsw
B95: Fesrzero | D95: =1/(C83*C84*10^-3*C86*2*PI()*10^-6) -> 1396095.992 | F95: =1/(C83*C84*10^-3*C86*2*PI()*10^-6) -> 1396095.992 | G95: Hz | H95: Fesr > 5*Fco desired (if red use lower esr capacitor)
B96: Cout min ripple | D96: =VLOOKUP(D90,partData!B81:R83,6,FALSE)*10^6 -> 171.3800536 | F96: =VLOOKUP(E91,partData!B81:R83,6,FALSE)*10^6 -> 171.3800536 | G96: uF
B97: Zout_Required | F97: =VLOOKUP(E91,partData!B81:R83,5,FALSE)*10^0 -> 0.007429333333 | G97: Ohm | H97: Required Output Impedance to meet the Transient Goal
B98: Zout_Converter | D98: =VLOOKUP(D90,partData!B81:R83,5,FALSE)*10^0 -> 0.007429333333 | G98: Ohm
B100: Cout_min eq11 | D100: =VLOOKUP(D90,partData!B81:R83,6,FALSE)*10^6 -> 171.3800536 | F100: =VLOOKUP(E91,partData!B81:R83,6,FALSE)*10^6 -> 171.3800536 | G100: µF
B101: Zcapacitor | D101: =C84*10^-3+1/(2*PI()*fco_desired*C86*C83*10^-6) -> 0.01734049431 | F101: =E84*10^-3+1/(2*PI()*fco_desired*E86*E83*10^-6) -> 0.01734049431 | G101: Ohm | H101: Z for one capacitor
B102: Ncap | D102: =ROUNDUP(D101/D98,0) -> 3 | F102: =ROUNDUP(F101/F97,0) -> 3 | G102: # of Cap
B103: N_Cout_cer | D103: 6 | E103: 5
B104: Cout_single_cer | D104: 100 | E104: 100
B105: Cer_derating | D105: 0.8 | E105: 0.8
B106: ESR_single_cer | D106: 3 | E106: 3
B107: Ceramic_RMS_current | D107: 3 | E107: 3
B108: Cer_Voltage_Rating | D108: 6.3 | E108: 6.3
B109: Cout_cer_eff trans design | F109: =E104*E103*E105 -> 400
B110: ESR_cer_eff trans design | F110: =E106/E103 -> 0.6
B113: Cout_ripple | D113: =Iripple_max/(8*(DeviceCalculator!Vout*C79/100)*fsw_Hz)*10^6 -> 43.04407713 | G113: µF | H113: Min Cout for DC ripple requirement (ignores ESR)
B114: Cout_trans | D114: =Io_step/(2*PI()*fsw_Hz/10*(DeviceCalculator!Vout*C76/100))*10^6 -> 159.1549431 | G114: µF | H114: Min Cout for transient requirement assuming fco = fsw/10
B115: Cout_overshoot | D115: =Lout*Io_step^2/(2*DeviceCalculator!Vout*(dVo_perc/100)*DeviceCalculator!Vout) -> 82.5 | G115: µF | H115: Min Cout for overshoot requirement based on inductor current slew rate
B116: Cout_undershoot | D116: =(Lout_H*Io_step^2/(2*(Vin_min-Vout)*(D77)) + Io_step*(1-Vout/Vin_min)*1/fsw_Hz/(D77))*10^6 -> 248.125 | G116: µF | H116: Min Cout for undershoot requirement based on inductor current slew rate
B117: Cout_stability | D117: =(35/(2*PI()*fsw_Hz))^2*1/Lout_H*1000000 -> 94.02912876 | G117: µF | H117: Min Cout for stability (f_LC < fsw/30)
B118: Cout_min | C118: =(MAX(D113:D117,15)) -> 248.125 | D118: =(MAX(D113:D117,15)) -> 248.125 | G118: µF | H118: Recommended min Cout (must include any derating due to DC/AC bias, temp and/or tolerance)
B119: Cout_max | D119: =(150/(2*PI()*fsw_Hz))^2*1/Lout_H*1000000 -> 1727.06563 | G119: µF | H119: Max Cout for stability (f_LC > fsw/150) (Exceeding this is typically ok but validation of loop stability is highly recommended)
B120: ESR_trans | D120: =D77/Io_step*1000 -> 4 | G120: mΩ | H120: Max ESR to meet load step transient requirement
B121: ESR_ripple | D121: =D80/Iripple_max*1000 -> 2.904 | G121: mΩ | H121: Max ESR to meet ripple requirement
B122: ESR_max | D122: =MIN(D120:D121) -> 2.904 | G122: mΩ
B123: N_Cout_cer | E123: 6 | H123: Number of output capacitors
B124: Cout_single_cer | E124: 100 | G124: µF | H124: Nominal value of single ceramic output capacitor
B125: Cer_derating | E125: 0.8 | H125: Remaining output capacitance after derating due to DC/AC bias, temp and/or tolerance
B126: ESR_single_cer | E126: 3 | G126: mΩ | H126: ESR of output single ceramic output capacitor
B127: Ceramic_RMS_current | E127: 3 | G127: A
B128: Cer_Voltage_Rating | E128: 6.3 | G128: V | H128: Voltage Rating of Ceramic Capacitor
B129: Cout_cer_eff | F129: =Cout_single_cer*N_Cout_cer*Cer_derating -> 480 | G129: µF | H129: Effective Cout (If red, not enough capacitance)
B130: ESR_cer_eff | F130: =ESR_single_cer/N_Cout_cer -> 0.5 | G130: mΩ | H130: Effective ESR
B131: N_Cout_bulk | E131: 0 | H131: Number of Bulk Capacitors
B132: Cout_single_bulk | E132: 0.1 | G132: uF | H132: Nominal value of a Single Bulk/Polymer/Electrolytic Output Capacitor
B133: Bulk_derating | E133: 1 | H133: Percentage of Nominal Bulk Capacitance remaining after tolerance, temperature, and/or lifetime
B134: Bulk_Voltage_Rating | H134: Voltage Rating of Bulk Capacitor
B135: ESR_single_bulk | E135: 1 | G135: mΩ | H135: Single Bulk Capacitor ESR
B136: Cout_bulk_eff | F136: 1 | G136: µF | H136: Total Bulk Output Capacitance
B137: ESR_bulk_eff | F137: 1 | G137: mΩ | H137: Effective Bulk Capacitance ESR
B138: Cout | F138: =Cout_bulk_eff+Cout_cer_eff -> 481 | G138: uF | H138: Total Bulk + Ceramic Output Capacitance
B139: f_LC | F139: =1/(2*PI()*SQRT(Lout_H*Cout_F))*0.001 -> 12.6325383 | G139: kHz | H139: LC resonant frequency
B140: fz_ESR_cer | F140: =IF(N_Cout_cer=0,10^6,1/(2*PI()*Cout_cer_eff_F*ESR_cer_eff_Ohm)*10^-3) -> 663.1455962 | G140: kHz | H140: Ceramic capacitor ESR zero frequency
B141: fz_ESR_bulk | F141: =IF(N_Cout_bulk=0,10^6,1/(2*PI()*Cout_bulk_eff_F*ESR_bulk_eff_Ohm)*10^-3) -> 1000000 | G141: kHz | H141: Bulk capacitor ESR zero frequency (if yellow, ESR zero may limit loop bandwidth)
B142: Transient response estimations with selected output caps
B143: fco_est | D143: =fsw_select/10 -> 100 | G143: kHz | H143: Loop bandwidth estimate of fsw_select/10
B144: Zcer_fco | F144: =(1/(2*PI()*DeviceCalculator!fco_Hz*DeviceCalculator!Cout_cer_eff_F)*10^3) -> 3.315727981 | G144: mΩ | H144: Estimated output cap impedance at fsw/10
B145: Zbulk_fco | F145: =SQRT((1/(2*PI()*fco_Hz*Cout_bulk_eff_F))^2+ESR_bulk_eff_Ohm^2)*10^3 -> 1591.549745 | G145: mΩ | H145: Bulk capacitor impedance at fsw
B146: Zcout_fco | F146: =Zcer_fco*Zbulk_fco/(Zcer_fco+Zbulk_fco) -> 3.308834577 | G146: mΩ | H146: Combined output capacitor impedance at fsw
B147: Vo_trans | F147: =Io_step*Zcout_fco -> 19.85300746 | G147: mV | H147: Estimated transient overshoot/undershoot based on loop bandwidth estimate
B148: Vo_overshoot | F148: =(Lout_H*Io_step^2/(2*Vout*Cout_F))*1000 -> 10.29106029 | G148: mV | H148: Estimated overshoot based on inductor current slew rate
B149: DC output ripple estimations with selected output caps
B150: Zcer_fsw | F150: =SQRT((1/(2*PI()*fsw_Hz*Cout_cer_eff_F))^2+ESR_cer_eff_Ohm^2)*10^3 -> 0.5999504317 | G150: mΩ | H150: Ceramic capacitor impdance at fsw
B151: Zbulk_fsw | F151: =SQRT((1/(2*PI()*fsw_Hz*Cout_bulk_eff_F))^2+ESR_bulk_eff_Ohm^2)*10^3 -> 159.1580847 | G151: mΩ | H151: Bulk capacitor impedance at fsw
B152: Zcout_fsw | F152: =Zcer_fsw*Zbulk_fsw/(Zcer_fsw+Zbulk_fsw) -> 0.5976973962 | G152: mΩ | H152: Combined output capacitor impedance at fsw
B153: Vo_ripple | F153: =Iripple_max*Zcout_fsw -> 2.469823951 | G153: mV | H153: Estimated capacitive + resistive DC ripple (ignores ESL)
B154: Choose the Input Capacitor (Cin)
B155: The input capacitance is deteremind based on the input ripple requirements. Additional bulk input capacitance may be needed for transients. 0.1µF high frequency bypass capacitors are also required.
B156: Vi_ripple_perc | C156: 0.04 | H156: Target DC input voltage ripple percentage
B157: Vi_ripple_rec | D157: =Vin_min*Vi_ripple_perc*1000 -> 400 | G157: mV | H157: Recommended DC input voltage ripple (based on Vin_min)
B158: Vi_ripple_target | C158: =D157 -> 400 | G158: mV | H158: Target DC input voltage ripple
B159: Cin_min | D159: =MAX(4.7,(Iout*0.25)/(Vi_ripple_target*fsw_select)*10^6) -> 7.5 | G159: µF | H159: Minimum input capacitance required (include derating)
B160: N_Cin_Cer | C160: 2 | D160: =ROUND(F168/C162,1) -> 1
B161: Cin_Single_cer | C161: 33
B162: Cin_single_Irms | C162: 4 | G162: A
B163: Cin_cer_derating | C163: 0.38
B164: Cin | E164: 25.08 | G164: µF | H164: Effective input ceramic cap used (include derating)
B165: Cin_RMS_currentrating | E165: =
B166: Cin_Voltage_Rating | E166: = | H166: Voltage Rating
B167: Vi_ripple | F167: =(Iout*Vout/Vin_max*(1-Vout/Vin_max))/(Cin*fsw_select)*10^6 -> 39.54288426 | G167: mV | H167: Input DC ripple
B168: Iin_rms | F168: =Iout*SQRT(Vout/Vin_min*(Vin_min-Vout)/Vin_min) -> 3.899538434 | G168: A | H168: Input RMS current
B169: Determine feedback network values (FB resistor divider and Cff)
B170: Rfb_b_rec | C170: 4.99 | D170: =(IF((10^(LOG(C170)-INT(LOG(C170)))*100)-VLOOKUP((10^(LOG(C170)-INT(LOG(C170)))*100),E96_s:E96_f,1)<VLOOKUP((10^(LOG(C170)-INT(LOG(C170)))*100),E96_s:E96_f,2)-(10^(LOG(C170)-INT(LOG(C170)))*100),VLOOKUP((10^(LOG(C170)-INT(LOG(C170)))*100),E96_s:E96_f,1),VLOOKUP((10^(LOG(C170)-INT(LOG(C170)))*100),E96_s:E96_f,2)))*10^INT(LOG(C170))/100 -> 4.99 | G170: kΩ | H170: Bottom feedback resistor (1k-20k recommended)
B171: Rfb_b | E171: 8 | G171: kΩ | H171: Selected bottom feedback resistor
B172: Rfb_t_target | D172: =Rfb_b*(Vout/Vref-1) -> 11.2 | G172: kΩ | H172: Calculated top resistor
B173: Rfb_t_std | D173: =(IF((10^(LOG(D172)-INT(LOG(D172)))*100)-VLOOKUP((10^(LOG(D172)-INT(LOG(D172)))*100),E96_s:E96_f,1)<VLOOKUP((10^(LOG(D172)-INT(LOG(D172)))*100),E96_s:E96_f,2)-(10^(LOG(D172)-INT(LOG(D172)))*100),VLOOKUP((10^(LOG(D172)-INT(LOG(D172)))*100),E96_s:E96_f,1),VLOOKUP((10^(LOG(D172)-INT(LOG(D172)))*100),E96_s:E96_f,2)))*10^INT(LOG(D172))/100 -> 11.3 | G173: kΩ | H173: Closest 1% standard resistor value
B174: Rfb_t | E174: 11.2 | G174: kΩ | H174: Selected top resistor
B175: Vout_calc | F175: =Vref*(1+Rfb_t/Rfb_b) -> 1.2 | G175: V | H175: Calculated Vout (yellow if not within 1% of target Vout)
B176: Cff_rec | D176: =1/(2*PI()*(fsw_select/4)*Rfb_t)*1000000 -> 56.8410511 | G176: pF | H176: Recommended feedforward cap value (fz_Cff = fsw/4)
B177: Cff_rec_std | D177: =IF(Cff_rec<10000,VLOOKUP((10^(LOG(Cff_rec)-INT(LOG(Cff_rec)))),c_s1:C_f1,1),VLOOKUP((10^(LOG(Cff_rec)-INT(LOG(Cff_rec)))),C_s2:C_f2,1))*10^INT(LOG(Cff_rec)) -> 56 | G177: pF | H177: Cpole recommended nearest standard value
B178: Cff | E178: 100 | G178: pF | H178: Selected feedforward cap value
B179: Rff_rec | D179: =Rfb_t/20 -> 0.56 | G179: kΩ | H179: Recommended feedforward resistor
B180: Rff_rec_std | D180: =(IF((10^(LOG(D179)-INT(LOG(D179)))*100)-VLOOKUP((10^(LOG(D179)-INT(LOG(D179)))*100),E96_s:E96_f,1)<VLOOKUP((10^(LOG(D179)-INT(LOG(D179)))*100),E96_s:E96_f,2)-(10^(LOG(D179)-INT(LOG(D179)))*100),VLOOKUP((10^(LOG(D179)-INT(LOG(D179)))*100),E96_s:E96_f,1),VLOOKUP((10^(LOG(D179)-INT(LOG(D179)))*100),E96_s:E96_f,2)))*10^INT(LOG(D179))/100 -> 0.562 | G180: kΩ | H180: Selected feedforward resistor value
B181: Rff | E181: 0 | G181: kΩ | H181: Selected feedforward resistor value
B182: fz_cff | F182: =IF(Cff<>0,1/(2*PI()*Cff*0.000000001*(Rfb_t+Rff)*1000),"N/A") -> 142.1026278 | G182: kHz | H182: Frequency of zero added by the feedforward cap
B195: EN pin resistor divider
B196: Vstart | C196: 5 | G196: V | H196: UVLO startup voltage (Red if Vstart < 1.1*Vstop)
B197: UVLO_stop_rec_max | D197: =Vstart/1.1 -> 4.545454545 | G197: V | H197: Maximum recommended UVLO shutdown voltage. Limited by voltage hysteresis on EN pins.
B198: Vstop | C198: 4.5 | G198: V | H198: UVLO shutdown voltage (Red if Vstart < 1.1*Vstop)
B199: Ren_t_rec | D199: =(DeviceCalculator!Vstart*(DeviceCalculator!EN_fall/DeviceCalculator!EN_rise)-DeviceCalculator!Vstop)/([0]!I_p1*(1-DeviceCalculator!EN_fall/DeviceCalculator!EN_rise)+[0]!I_h)/1000 -> 8.14995925 | G199: kΩ | H199: Calculated top resistor
B200: Ren_t_std | D200: =(IF((10^(LOG(D199)-INT(LOG(D199)))*100)-VLOOKUP((10^(LOG(D199)-INT(LOG(D199)))*100),E96_s:E96_f,1)<VLOOKUP((10^(LOG(D199)-INT(LOG(D199)))*100),E96_s:E96_f,2)-(10^(LOG(D199)-INT(LOG(D199)))*100),VLOOKUP((10^(LOG(D199)-INT(LOG(D199)))*100),E96_s:E96_f,1),VLOOKUP((10^(LOG(D199)-INT(LOG(D199)))*100),E96_s:E96_f,2)))*10^INT(LOG(D199))/100 -> 8.06 | G200: kΩ | H200: Closest 1% standard resistor value
B201: Ren_t | E201: 8.06 | G201: kΩ | H201: Selected bottom resistor
B202: Ren_b_calc | D202: =(Ren_t*EN_fall)/((Vstop-EN_fall)+Ren_t*I_p2)/1000 -> 2.537858924 | G202: kΩ | H202: Calculated top resistor
B203: Ren_b_std | D203: =(IF((10^(LOG(D202)-INT(LOG(D202)))*100)-VLOOKUP((10^(LOG(D202)-INT(LOG(D202)))*100),E96_s:E96_f,1)<VLOOKUP((10^(LOG(D202)-INT(LOG(D202)))*100),E96_s:E96_f,2)-(10^(LOG(D202)-INT(LOG(D202)))*100),VLOOKUP((10^(LOG(D202)-INT(LOG(D202)))*100),E96_s:E96_f,1),VLOOKUP((10^(LOG(D202)-INT(LOG(D202)))*100),E96_s:E96_f,2)))*10^INT(LOG(D202))/100 -> 2.55 | G203: kΩ | H203: Closest 1% standard resistor value
B204: Ren_b | E204: 10000 | G204: kΩ | H204: Selected top resistor
B205: Vstart_typ | F205: =EN_rise+Ren_t*(EN_rise-I_p1*Ren_b)/Ren_b -> 1.1888772 | G205: V | H205: Estimated typical turn on voltage with selected resistors (Yellow if < Vin_min)
B206: Vstart_max | F206: =EN_rise_max+Ren_t*(EN_rise_max-I_p1*Ren_b)/Ren_b -> 1.2389175 | G206: V | H206: Estimated maximum turn on voltage with selected resistors (Yellow if < Vin_min)
B207: Vstop_typ | F207: =EN_fall-(Ren_t*(I_p1*Ren_b-EN_fall+I_h*Ren_b))/Ren_b -> 1.0073906 | G207: V | H207: Estimated typical turn off voltage with selected resistors
B208: Vena max voltage | F208: =Vin_max*E204/(E201+E204) -> 13.18936937 | G208: V | H208: Max voltage with Ren_t and Ren_b and Vinmax
B209: Pen_divider | F209: =Vin_max*Vin_max/(Ren_b+Ren_t)*1000 -> 0.01740996757 | G209: mW | H209: Power lost in EN divider at Vin_max
B210: VCC bypass capacitor, BOOT bypass capacitor, PGOOD resistor
B211: Cvdrv_rec | D211: 2.2 | G211: µF | H211: At least 2.2 µF required from VDRV to PGND
B212: Cvdrv | E212: 2.2 | G212: µF | H212: Selected Cvdrv
B213: Cvcc_rec | D213: 0.1 | G213: µF | H213: Use 0.1uF from VCC to AGND
B214: Cvcc | E214: 0.1 | G214: µF | H214: Selected Cvcc
B215: Rvcc_rec | D215: 10 | G215: Ω | H215: Use 10 Ohm from VDRV to VCC
B216: Rvcc | E216: 10 | G216: Ω | H216: Selected Rvcc
B217: Cboot_rec | D217: 0.1 | G217: µF | H217: At least 0.1µF required
... 5 more rows

Sheet Sheet1 (hidden)
K5: fsw | L5: lookup1 | M5: lookup2
K6: 500 | L6: 0.372 | M6: 0.297
K7: 1000 | L7: 0.719 | M7: 0.594
E10: tcramp | F10: =F11*10^6/(F12-F13*F14/F15) -> 2.012578616e-05
E11: Cramp (F) | F11: 4e-12
E12: lookup1 | F12: =L6 -> 0.372
E13: lookup2 | F13: =M6 -> 0.297
E14: vout V | F14: 7
E15: vin V | F15: 12
E18: vcramp | F18: =F19*(F20+F21)/(F22) -> 0.75525
E19: =E15 -> vin V | F19: =F15 -> 12
E20: ton s | F20: =(F14/F19)*(1/F24) -> 1.166666667e-06
E21: 100ns as seconds | F21: 1e-07
E22: tcramp | F22: =F10 -> 2.012578616e-05
E23: =E11 -> Cramp (F) | F23: =F11 -> 4e-12
E24: fsw Hz | F24: 500000

Sheet partData (hidden)
A1: 1 | B1: 2 | C1: 3 | D1: 4 | E1: 5 | F1: 6 | G1: 7 | H1: 8 | I1: 9 | J1: 10 | K1: 11 | L1: 12 | M1: 13 | N1: 14 | O1: 15 | P1: 16 | Q1: 17 | R1: 18 | S1: 19 | T1: 20 | U1: 21 | V1: 22 | W1: 23 | X1: 24 | Y1: 25
A2: Part # | B2: VIN_min | C2: VIN_max | D2: Io,rated | E2: OC high min | F2: OC low min | G2: tonmin max | H2: toffmin max | I2: Vref | J2: R_HS | K2: R_LS | L2: EN_rise | M2: EN_fall | N2: I_p1 | O2: I_p2 | P2: I_h | Q2: EN_rise_max | R2: OC high valley | S2: OC low_valley | T2: VoutMax | U2: Lout | V2: DCR | W2: Tol_L
A3: TPS543320 | B3: 4 | C3: 18 | D3: 3 | E3: 4 | F3: 2.6 | G3: 40 | H3: 140 | I3: 0.5 | J3: 25 | K3: 13.9 | L3: 1.2 | M3: 1.1 | N3: 1.5e-06 | O3: =0.0000116 -> 1.16e-05 | P3: =I_p2-I_p1 -> 1.01e-05 | Q3: 1.25 | T3: 5.5
A4: TPS543620 | B4: 4 | C4: 18 | D4: 6 | E4: 8.37 | F4: 4 | G4: 40 | H4: 140 | I4: 0.5 | J4: 25 | K4: 6.5 | L4: 1.2 | M4: 1.1 | N4: 1.5e-06 | O4: =0.0000116 -> 1.16e-05 | P4: =I_p2-I_p1 -> 1.01e-05 | Q4: 1.25 | T4: 5.5
A5: TPS543820 | B5: 4 | C5: 18 | D5: 8 | E5: 11.25 | F5: 8.37 | G5: 40 | H5: 140 | I5: 0.5 | J5: 25 | K5: 6.5 | L5: 1.2 | M5: 1.1 | N5: 1.5e-06 | O5: =0.0000116 -> 1.16e-05 | P5: =I_p2-I_p1 -> 1.01e-05 | Q5: 1.25 | T5: 5.5
A6: TPS543B25 | B6: 4 | C6: 18 | D6: 25 | E6: 32.4 | F6: 26.1 | G6: 40 | H6: 140 | I6: 0.5 | J6: 6.5 | K6: 2 | L6: 1.2 | M6: 1.1 | N6: 1.5e-06 | O6: 1.16e-05 | P6: 1.01e-05 | Q6: 1.25 | R6: 24.75 | S6: 19.8 | T6: 7
A7: TPSM843B22 | B7: 4 | C7: 18 | D7: 20 | E7: 26.1 | F7: 20.7 | G7: 40 | H7: 140 | I7: 0.5 | J7: 6.5 | K7: 2 | L7: 1.2 | M7: 1.1 | N7: 1.5e-06 | O7: 1.16e-05 | P7: 1.01e-05 | Q7: 1.25 | R7: 21.15 | S7: 16.74 | T7: 7 | U7: 0.33 | V7: 3.2 | W7: 0.2
A8: TPSM843A26 | B8: 4 | C8: 18 | D8: 16 | E8: 20.7 | F8: 16.2 | G8: 40 | H8: 140 | I8: 0.5 | J8: 6.5 | K8: 2 | L8: 1.2 | M8: 1.1 | N8: 1.5e-06 | O8: 1.16e-05 | P8: 1.01e-05 | Q8: 1.25 | R8: 16.74 | S8: 12.51 | T8: 7 | U8: 0.6 | V8: 4.11 | W8: 0.2
A9: TPSM843A22 | B9: 4 | C9: 18 | D9: 12 | E9: 15.75 | F9: 10.35 | G9: 40 | H9: 140 | I9: 0.5 | J9: 6.5 | K9: 2 | L9: 1.2 | M9: 1.1 | N9: 1.5e-06 | O9: 1.16e-05 | P9: 1.01e-05 | Q9: 1.25 | R9: 11.88 | S9: 7.92 | T9: 7 | U9: 0.6 | V9: 4.11 | W9: 0.2
A10: TPS543B25T | B10: 4 | C10: 18 | D10: 25 | E10: 32.4 | F10: 26.1 | G10: 40 | H10: 140 | I10: 0.5 | J10: 6.5 | K10: 2 | L10: 1.2 | M10: 1.1 | N10: 1.5e-06 | O10: 1.16e-05 | P10: 1.01e-05 | Q10: 1.25 | R10: 24.75 | S10: 19.8 | T10: 7
Z14: Yes
U16: =DeviceCalculator!R_msel -> 102
N17: TPS543820 | O17: Current Limit | P17: Cramp | Q17: soft start
S18: Res to GND | T18: E12 Series | U18: Error | V18: In range? | W18: E12 Par | X18: Error | Y18: In range?
N19: =CONCATENATE(O19, P19, Q19) -> High11 | O19: =AD$20 -> High | P19: =AE$20 -> 1 | Q19: =AF$20 -> 1 | R19: 1 | S19: 1.78 | T19: 1.8 | U19: =(T19-S19)/S19 -> 0.01123595506 | V19: =IF(U19>0,AND($U$16>=S19,$U$16<=S19*(1+U19)),AND($U$16<=S19,$U$16>=S19*(1+U19))) -> FALSE | W19: 1.8 | X19: =(W19-S19)/S19 -> 0.01123595506 | Y19: =IF(X19>0,AND($U$16>=S19,$U$16<=S19*(1+X19)),AND($U$16<=S19,$U$16>=S19*(1+X19))) -> FALSE | Z19: =OR(V19,Y19) -> FALSE | AA19: =O19 -> High | AB19: 1 | AC19: 1 | AE19: ramp | AF19: ss | AG19: =S19*(100+U19) -> 178.02
E20: Frequency selection table | H20: =DeviceCalculator!R_fsel -> 11.8 | N20: High12 | O20: =AD$20 -> High | P20: 1 | Q20: =AF$21 -> 2 | R20: 2 | S20: 2.21 | T20: 2.2 | U20: =(T20-S20)/S20 -> -0.004524886878 | V20: =IF(U20>0,AND($U$16>=S20,$U$16<=S20*(1+U20)),AND($U$16<=S20,$U$16>=S20*(1+U20))) -> FALSE | W20: 2.2 | X20: -0.004524886878 | Y20: FALSE | Z20: =OR(V20,Y20) -> FALSE | AA20: High | AB20: 1 | AC20: 2 | AD20: High | AE20: 1 | AF20: 1
E21: Freq(kHz) | F21: Res to GND | G21: E12 Res to GND | H21: Rfsel_min | I21: Rfsel_max | K21: =MIN(DeviceCalculator!fsw_max_ton,DeviceCalculator!fsw_max_toff) -> 2066.115702 | N21: High14 | O21: High | P21: 1 | Q21: =AF$22 -> 4 | R21: 3 | S21: 2.74 | T21: 2.7 | U21: -0.01459854015 | V21: FALSE | W21: 2.7 | X21: -0.01459854015 | Y21: FALSE | Z21: FALSE | AA21: High | AB21: 1 | AC21: 4 | AD21: Low | AE21: 2 | AF21: 2
A22: Top Resistor: | B22: GND | C22: Connect to GND | E22: 500 | F22: 24.3 | G22: 27 | H22: 24 | I22: 1000000 | J22: =AND($H$20>=H22,$H$20<=I22) -> FALSE | K22: =K$21<L23 -> FALSE | L22: =E22 -> 500 | N22: High18 | O22: High | P22: 1 | Q22: =AF$23 -> 8 | R22: 4 | S22: 3.32 | T22: 3.3 | U22: -0.006024096386 | V22: FALSE | W22: 3.3 | X22: -0.006024096386 | Y22: FALSE | Z22: FALSE | AA22: High | AB22: 1 | AC22: 8 | AE22: 4 | AF22: 4
A23: Bottom Resistor: | B23: PGOOD | C23: Connect to PGOOD | E23: 750 | F23: 17.4 | G23: 18 | H23: 17.4 | I23: 18 | J23: =AND($H$20>=H23,$H$20<=I23) -> FALSE | K23: =K$21<L24 -> FALSE | L23: =E23 -> 750 | N23: High21 | O23: High | P23: =AE$21 -> 2 | Q23: =AF$20 -> 1 | R23: 5 | S23: 4.02 | T23: 4 | U23: -0.004975124378 | V23: FALSE | W23: 4 | X23: -0.004975124378 | Y23: FALSE | Z23: FALSE | AA23: High | AB23: 2 | AC23: 1 | AF23: 8
A24: =CONCATENATE(A22, DeviceCalculator!D130) -> Top Resistor: | B24: VREG | C24: Connect to VREG | E24: 1000 | F24: 11.8 | G24: 12 | H24: 11.8 | I24: 12.1 | J24: TRUE | K24: =K$21<L25 -> FALSE | L24: 1000 | N24: High22 | O24: High | P24: =AE$21 -> 2 | Q24: =AF$21 -> 2 | R24: 6 | S24: 4.87 | T24: 4.9 | U24: 0.006160164271 | V24: FALSE | W24: =8.2*12/(8.2+12) -> 4.871287129 | X24: 0.000264297477 | Y24: FALSE | Z24: FALSE | AA24: High | AB24: 2 | AC24: 2
A25: =CONCATENATE(A23, DeviceCalculator_old!D116) -> Bottom Resistor: 4.99 | B25: Open | C25: Leave Floating | E25: 1500 | F25: 8.06 | G25: 8.2 | H25: 8.06 | I25: 8.25 | J25: FALSE | K25: =K$21<L26 -> TRUE | L25: 1500 | N25: High24 | O25: High | P25: =AE$21 -> 2 | Q25: =AF$22 -> 4 | R25: 7 | S25: 5.9 | T25: 5.9 | U25: 0 | V25: FALSE | W25: =T25 -> 5.9 | X25: 0 | Y25: FALSE | Z25: FALSE | AA25: High | AB25: 2 | AC25: 4
E26: 2200 | F26: 4.99 | G26: 4.7 | H26: 4.99 | I26: 5.11 | J26: FALSE | K26: =K21=L26 -> FALSE | L26: 2200 | N26: High28 | O26: High | P26: 2 | Q26: =AF$23 -> 8 | R26: 8 | S26: 7.32 | T26: 7.2 | U26: -0.01639344262 | V26: FALSE | W26: 7.32 | X26: 0 | Y26: FALSE | Z26: FALSE | AA26: High | AB26: 2 | AC26: 8
J27: =AND(J22:J26) -> FALSE | N27: High41 | O27: High | P27: =AE$22 -> 4 | Q27: =AF$20 -> 1 | R27: 9 | S27: 9.09 | T27: 9 | U27: -0.009900990099 | V27: FALSE | W27: 9.09 | X27: 0 | Y27: FALSE | Z27: FALSE | AA27: High | AB27: 4 | AC27: 1
G28: Recommended fsw | N28: High42 | O28: High | P28: =AE$22 -> 4 | Q28: =AF$21 -> 2 | R28: 10 | S28: 11.3 | T28: 11.2 | U28: -0.008849557522 | V28: FALSE | W28: 11.25 | X28: -0.004424778761 | Y28: =IF(X28>0,AND($U$16>=S28,$U$16<=S28*(1+X28)),AND($U$16<=S28,$U$16>=S28*(1+X28))) -> FALSE | Z28: FALSE | AA28: High | AB28: 4 | AC28: 2
J29: 0.5 | N29: High44 | O29: High | P29: =AE$22 -> 4 | Q29: =AF$22 -> 4 | R29: 11 | S29: 14.3 | T29: 14.2 | U29: -0.006993006993 | V29: FALSE | W29: 14.23 | X29: -0.004895104895 | Y29: =IF(X29>0,AND($U$16>=S29,$U$16<=S29*(1+X29)),AND($U$16<=S29,$U$16>=S29*(1+X29))) -> FALSE | Z29: FALSE | AA29: High | AB29: 4 | AC29: 4
J30: 0.75 | N30: High48 | O30: High | P30: =AE$22 -> 4 | Q30: =AF$23 -> 8 | R30: 12 | S30: 18.2 | T30: 18 | U30: -0.01098901099 | V30: FALSE | W30: 18 | X30: -0.01098901099 | Y30: FALSE | Z30: FALSE | AA30: High | AB30: 4 | AC30: 8
J31: 1 | N31: Low11 | O31: =AD$21 -> Low | P31: =AE$20 -> 1 | Q31: =AF$20 -> 1 | R31: 13 | S31: 22.1 | T31: 22.1 | U31: 0 | V31: FALSE | W31: 22.04 | X31: -0.002714932127 | Y31: FALSE | Z31: FALSE | AA31: Low | AB31: 1 | AC31: 1
J32: 1.5 | N32: Low12 | O32: Low | P32: =AE$20 -> 1 | Q32: =AF$21 -> 2 | R32: 14 | S32: 26.7 | T32: 27 | U32: 0.01123595506 | V32: FALSE | W32: 27 | X32: 0.01123595506 | Y32: FALSE | Z32: FALSE | AA32: Low | AB32: 1 | AC32: 2
D33: Original calculation | E33: Calculation with added margin | J33: 2 | N33: Low14 | O33: Low | P33: =AE$20 -> 1 | Q33: =AF$22 -> 4 | R33: 15 | S33: 33.2 | T33: 33.18 | U33: -0.0006024096386 | V33: FALSE | W33: 33.13 | X33: -0.002108433735 | Y33: FALSE | Z33: FALSE | AA33: Low | AB33: 1 | AC33: 4
A34: Ramp4 | B34: y=-0.075x+6.4 | D34: =-0.075*$B$40+6.4 -> 0.4629509099 | E34: =-0.075/1.2*$B$40+6.4 -> 1.452459092 | J34: 2.5 | N34: Low18 | O34: Low | P34: =AE$20 -> 1 | Q34: =AF$23 -> 8 | R34: 16 | S34: 40.2 | T34: 40.2 | U34: 0 | V34: FALSE | W34: 40.2 | X34: 0 | Y34: FALSE | Z34: FALSE | AA34: Low | AB34: 1 | AC34: 8
A35: Ramp2 | B35: y=-0.07x+4.6667 | D35: =-0.07*$B$40+4.667 -> -0.8742458174 | E35: =-0.07/1.1*$B$40+4.667 -> -0.3704961977 | J35: 3 | N35: Low21 | O35: Low | P35: =AE$21 -> 2 | Q35: =AF$20 -> 1 | R35: 17 | S35: 49.9 | T35: 49.7 | U35: -0.004008016032 | V35: FALSE | W35: 50 | X35: 0.002004008016 | Y35: FALSE | Z35: FALSE | AA35: Low | AB35: 2 | AC35: 1
A36: Ramp1 | B36: y=-0.0591x+2.978 | D36: =-0.0591*$B$40+2.978 -> -1.700394683 | E36: =-0.0591/1.05*$B$40+2.978 -> -1.477613984 | J36: 3.5 | N36: Low22 | O36: Low | P36: =AE$21 -> 2 | Q36: =AF$21 -> 2 | R36: 18 | S36: 60.4 | T36: 60.7 | U36: 0.004966887417 | V36: FALSE | W36: 60.64 | X36: 0.003973509934 | Y36: FALSE | Z36: FALSE | AA36: Low | AB36: 2 | AC36: 2
C37: ramp= | D37: =IF(Vout>=D34,AE22,IF(AND(Vout>=D35, Vout<D34), AE21, IF(AND(Vout>=D36,Vout<D35),AE20,"Unstable"))) -> 4 | E37: =IF(Vout>=E34,AE22,IF(AND(Vout>=E35, Vout<E34), AE21, IF(AND(Vout>=E36,Vout<E35),AE20,"Unstable"))) -> 2 | J37: 4 | N37: Low24 | O37: Low | P37: =AE$21 -> 2 | Q37: =AF$22 -> 4 | R37: 19 | S37: 76.8 | T37: 76.2 | U37: -0.0078125 | V37: FALSE | W37: 76.74 | X37: -0.00078125 | Y37: FALSE | Z37: FALSE | AA37: Low | AB37: 2 | AC37: 4
J38: 4.5 | N38: Low28 | O38: Low | P38: =AE$21 -> 2 | Q38: =AF$23 -> 8 | R38: 20 | S38: 102 | T38: 100 | U38: -0.01960784314 | V38: TRUE | W38: 100 | X38: -0.01960784314 | Y38: TRUE | Z38: TRUE | AA38: Low | AB38: 2 | AC38: 8
A39: FLC | B39: =1/(2*PI()*SQRT(([0]!Lout*[0]!Cout*10^-12))) -> 12632.5383 | J39: 5 | N39: Low41 | O39: Low | P39: =AE$22 -> 4 | Q39: =AF$20 -> 1 | R39: 21 | S39: 137 | T39: =82+56 -> 138 | U39: 0.007299270073 | V39: FALSE | W39: 136.36 | X39: -0.004671532847 | Y39: FALSE | Z39: FALSE | AA39: Low | AB39: 4 | AC39: 1
A40: FSW/FLC | B40: =DeviceCalculator!fsw_div_fLC -> 79.16065453 | J40: 5.5 | N40: Low42 | O40: Low | P40: =AE$22 -> 4 | Q40: =AF$21 -> 2 | R40: 22 | S40: 174 | T40: =180 -> 180 | U40: 0.03448275862 | V40: FALSE | W40: 180 | X40: 0.03448275862 | Y40: FALSE | Z40: FALSE | AA40: Low | AB40: 4 | AC40: 2
J41: 6 | N41: Low44 | O41: Low | P41: =AE$22 -> 4 | Q41: =AF$22 -> 4 | R41: 23 | S41: 243 | T41: 270 | U41: 0.1111111111 | V41: FALSE | W41: 270 | X41: 0.1111111111 | Y41: FALSE | Z41: FALSE | AA41: Low | AB41: 4 | AC41: 4
J42: 6.5 | N42: Low48 | O42: Low | P42: =AE$22 -> 4 | Q42: =AF$23 -> 8 | R42: 24 | S42: 412 | T42: 390 | U42: -0.05339805825 | V42: FALSE | W42: 390 | X42: -0.05339805825 | Y42: FALSE | Z42: FALSE | AA42: Low | AB42: 4 | AC42: 8
J43: 7 | N43: High22 | O43: =AD$20 -> High | P43: =AE$21 -> 2 | Q43: =AF$21 -> 2 | R43: 25 | S43: n/a | T43: n/a | Z43: =S43=R_mode -> FALSE | AA43: High | AB43: 2 | AC43: 2
A44: =1/(2*PI()*SQRT(([0]!Lout*(1-Tol_L))*[0]!Cout*10^-12)) -> 14123.60718 | J44: 7.5 | Z44: =OR(Z19:Z43) -> TRUE
J45: 8
E47: table 7-5 | N47: TPS543B22 | O47: Current Limit | P47: Cramp | Q47: soft start
E48: Cramp (pF) | J48: Lookup table 7-4 in datasheet | S48: Res to GND
A49: Lookup Table for Fast Transient | C49: fsw | D49: 1 | E49: 2 | F49: 4 | I49: fsw | J49: version 1 | K49: version 2 Lookup1 | L49: Lookup2 | N49: =CONCATENATE(O49, P49, Q49) -> High11 | O49: =AD$20 -> High | P49: =AE$20 -> 1 | Q49: 1 | R49: 1 | S49: 1.78
C50: 500 | D50: 109 | E50: 217 | F50: 434 | I50: 500 | J50: 2854000 | K50: 0.372 | L50: 0.297 | N50: High12 | O50: =AD$20 -> High | P50: 1 | Q50: 2 | R50: 2 | S50: 2.21
C51: 750 | D51: 72 | E51: 145 | F51: 289 | I51: 750 | J51: 1935000 | K51: 0.548 | L51: 0.445 | N51: High14 | O51: High | P51: 1 | Q51: 4 | R51: 3 | S51: 2.74
C52: 1000 | D52: 54 | E52: 108 | F52: 217 | I52: 1000 | J52: 1477000 | K52: 0.719 | L52: 0.594 | N52: High18 | O52: High | P52: 1 | Q52: 8 | R52: 4 | S52: 3.32
C53: 1500 | D53: 36 | E53: 72 | F53: 145 | I53: 1500 | J53: 1020000 | K53: 1.04 | L53: 0.891 | N53: High21 | O53: High | P53: =AE$21 -> 2 | Q53: 1 | R53: 5 | S53: 4.02
C54: 2200 | D54: 25 | E54: 49 | F54: 99 | I54: 2200 | J54: 733000 | K54: 1.46 | L54: 1.31 | N54: High22 | O54: High | P54: =AE$21 -> 2 | Q54: 2 | R54: 6 | S54: 4.87
N55: High24 | O55: High | P55: =AE$21 -> 2 | Q55: 4 | R55: 7 | S55: 5.9
C56: FSW+Cramp | N56: High28 | O56: High | P56: 2 | Q56: 8 | R56: 8 | S56: 7.32
N57: High41 | O57: High | P57: =AE$22 -> 4 | Q57: 1 | R57: 9 | S57: 9.09
N58: High42 | O58: High | P58: =AE$22 -> 4 | Q58: 2 | R58: 10 | S58: 11.3
C59: fsw | D59: Cramp | E59: Lookup | I59: 1/10 | J59: =1/10 -> 0.1 | N59: High44 | O59: High | P59: =AE$22 -> 4 | Q59: 4 | R59: 11 | S59: 14.3
B60: =CONCATENATE(C60, D60) -> 5001 | C60: 500 | D60: 1 | E60: 109 | I60: 1/9 | J60: =1/9 -> 0.1111111111 | N60: High48 | O60: High | P60: =AE$22 -> 4 | Q60: 8 | R60: 12 | S60: 18.2
B61: =CONCATENATE(C61, D61) -> 5002 | C61: 500 | D61: 2 | E61: 217 | I61: 1/8 | J61: =1/8 -> 0.125 | N61: Low11 | O61: =AD$21 -> Low | P61: =AE$20 -> 1 | Q61: 1 | R61: 13 | S61: 22.1
B62: 5004 | C62: 500 | D62: 4 | E62: 434 | I62: 1/6 | J62: =1/7 -> 0.1428571429 | N62: Low12 | O62: Low | P62: =AE$20 -> 1 | Q62: 2 | R62: 14 | S62: 26.7
B63: 7501 | C63: 750 | D63: 1 | E63: 72 | I63: 1/5 | J63: =1/5 -> 0.2 | N63: Low14 | O63: Low | P63: =AE$20 -> 1 | Q63: 4 | R63: 15 | S63: 33.2
B64: 7502 | C64: 750 | D64: 2 | E64: 145 | I64: 1/4 | J64: =1/4 -> 0.25 | N64: Low18 | O64: Low | P64: =AE$20 -> 1 | Q64: 8 | R64: 16 | S64: 40.2
B65: 7504 | C65: 750 | D65: 4 | E65: 289 | I65: 1/3 | J65: =1/3 -> 0.3333333333 | N65: Low21 | O65: Low | P65: =AE$21 -> 2 | Q65: 1 | R65: 17 | S65: 49.9
B66: 10001 | C66: 1000 | D66: 1 | E66: 54 | I66: 1/2 | J66: =1/2 -> 0.5 | N66: Low22 | O66: Low | P66: =AE$21 -> 2 | Q66: 2 | R66: 18 | S66: 60.4
B67: 10002 | C67: 1000 | D67: 2 | E67: 108 | N67: Low24 | O67: Low | P67: =AE$21 -> 2 | Q67: 4 | R67: 19 | S67: 76.8
B68: 10004 | C68: 1000 | D68: 4 | E68: 217 | N68: Low28 | O68: Low | P68: =AE$21 -> 2 | Q68: 8 | R68: 20 | S68: 102
B69: 15001 | C69: 1500 | D69: 1 | E69: 36 | N69: Low41 | O69: Low | P69: =AE$22 -> 4 | Q69: 1 | R69: 21 | S69: 137
B70: 15002 | C70: 1500 | D70: 2 | E70: 72 | N70: Low42 | O70: Low | P70: =AE$22 -> 4 | Q70: 2 | R70: 22 | S70: 174
B71: 15004 | C71: 1500 | D71: 4 | E71: 145 | N71: Low44 | O71: Low | P71: =AE$22 -> 4 | Q71: 4 | R71: 23 | S71: 243
B72: 22001 | C72: 2200 | D72: 1 | E72: 25 | N72: Low48 | O72: Low | P72: =AE$22 -> 4 | Q72: 8 | R72: 24 | S72: 412
B73: 22002 | C73: 2200 | D73: 2 | E73: 49
B74: 22004 | C74: 2200 | D74: 4 | E74: 99
D76: Lo | E76: =DeviceCalculator!Lout -> 0.33 | F76: Vinmax | G76: =DeviceCalculator!C31 -> 13.2 | H76: Cout | I76: =DeviceCalculator!C83*10^-6 -> 0.0001
B77: fsw | C77: =DeviceCalculator!fsw_select -> 1000 | D77: deltaV | E77: =DeviceCalculator!dVo_trans -> 0.024 | F77: Vout | G77: =DeviceCalculator!C32 -> 1.2 | H77: Resr | I77: =DeviceCalculator!C84*10^-3 -> 0.001425
B78: Fco desired | C78: =[0]!fco_desired -> 125000 | D78: deltaI | E78: =DeviceCalculator!Io_step -> 6 | H78: Derating | I78: =DeviceCalculator!C86 -> 0.8
B80: Cramp | C80: Vcramp | D80: Lookup | E80: Zout_required | F80: Zout_converter | G80: Cout_min | H80: Capacitor | I80: Resr | J80: Derating | K80: Zcapacitor | L80: Ncapacitor | N80: fesr zero | O80: 5xFco | P80: is fesr > 5xfco | Q80: is Vcramp <1.25V | R80: AND of Vcramp and Fesr
B81: 1 | C81: =$G$76*(($G$77/$G$76)*(1/($C$77*1000))+0.0000001)/(VLOOKUP( DeviceCalculator!fsw_select,partData!$I$50:$J$54,2,FALSE)*B81*10^-12) -> 1.706161137 | D81: =VLOOKUP(CONCATENATE(C77,B81),partData!$B$59:$E$74,4,FALSE) -> 54 | E81: =$E$77/$E$78 -> 0.004 | F81: =(0.00004+($E$76*10^-6)/(D81*10^-6))*DeviceCalculator!Vout/DeviceCalculator!Vref -> 0.01476266667 | G81: =1/(2*PI()*$C$78*F81) -> 8.624725962e-05 | H81: =$I$76 -> 0.0001 | I81: =$I$77 -> 0.001425 | J81: =$I$78 -> 0.8 | K81: =I81+1/(2*PI()*J81*H81*$C$78) -> 0.01734049431 | L81: =K81/F81 -> 1.174618021 | N81: =1/(I81*H81*J81*2*PI()) -> 1396095.992 | O81: =$C$78*5 -> 625000 | P81: =IF(N81>O81,TRUE,FALSE) -> TRUE | Q81: =IF(C81<1.25,TRUE,FALSE) -> FALSE | R81: =AND(P81,Q81) -> FALSE
B82: 2 | C82: =$G$76*(($G$77/$G$76)*(1/($C$77*1000))+0.0000001)/(VLOOKUP( DeviceCalculator!fsw_select,partData!$I$50:$J$54,2,FALSE)*B82*10^-12) -> 0.8530805687 | D82: =VLOOKUP(CONCATENATE(C77,B82),partData!$B$59:$E$74,4,FALSE) -> 108 | E82: =$E$77/$E$78 -> 0.004 | F82: =(0.00004+($E$76*10^-6)/(D82*10^-6))*DeviceCalculator!Vout/DeviceCalculator!Vref -> 0.007429333333 | G82: =1/(2*PI()*$C$78*F82) -> 0.0001713800536 | H82: =$I$76 -> 0.0001 | I82: =$I$77 -> 0.001425 | J82: =$I$78 -> 0.8 | K82: =I82+1/(2*PI()*J82*H82*$C$78) -> 0.01734049431 | L82: =K82/F82 -> 2.33405792 | N82: =1/(I82*H82*J82*2*PI()) -> 1396095.992 | O82: =$C$78*5 -> 625000 | P82: =IF(N82>O82,TRUE,FALSE) -> TRUE | Q82: =IF(C82<1.25,TRUE,FALSE) -> TRUE | R82: =AND(P82,Q82) -> TRUE
B83: 4 | C83: =$G$76*(($G$77/$G$76)*(1/($C$77*1000))+0.0000001)/(VLOOKUP( DeviceCalculator!fsw_select,partData!$I$50:$J$54,2,FALSE)*B83*10^-12) -> 0.4265402844 | D83: =VLOOKUP(CONCATENATE(C77,B83),partData!$B$59:$E$74,4,FALSE) -> 217 | E83: 0.004 | F83: =(0.00004+($E$76*10^-6)/(D83*10^-6))*DeviceCalculator!Vout/DeviceCalculator!Vref -> 0.003745769585 | G83: 0.0003399140059 | H83: 0.0001 | I83: 0.001425 | J83: 0.8 | K83: 0.01734049431 | L83: =K83/F83 -> 4.629354239 | N83: 1396095.992 | O83: =$C$78*5 -> 625000 | P83: =IF(N83>O83,TRUE,FALSE) -> TRUE | Q83: =IF(C83<1.25,TRUE,FALSE) -> TRUE | R83: =AND(P83,Q83) -> TRUE
P85: Recommended Cramp | Q85: =IF(R81=TRUE,1,IF(R82=TRUE,2,IF(R83=TRUE,4,"NA"))) -> 2
A87: Vout | B87: =DeviceCalculator!Vout -> 1.2 | C87: =B87 -> 1.2 | D87: =C87 -> 1.2
A88: Voltage Rating | B88: =DeviceCalculator!C85 -> 6.3 | C88: =DeviceCalculator!E85 -> 6.3 | D88: =DeviceCalculator!E128 -> 6.3
A89: Ceramic | E89: 6.3 | G89: 100 | H89: 47 | I89: 22
A90: 100 | B90: =(IF(0.9589-0.8654*(B87/B88)>1,1,0.9589-0.8654*(B87/B88))) -> 0.7940619048 | C90: =(IF(0.9589-0.8654*(C87/C88)>1,1,0.9589-0.8654*(C87/C88))) -> 0.7940619048 | D90: =(IF(0.9589-0.8654*(D87/D88)>1,1,0.9589-0.8654*(D87/D88))) -> 0.7940619048 | E90: 0.5 | F90: =E90/$E$89 -> 0.07936507937 | G90: =0.9589-0.8654*F90 -> 0.8902174603 | H90: =1.0626-0.78661*F90 -> 1.000170635 | I90: =1.1002-0.6001*F90 -> 1.052573016
A91: 47 | B91: =(IF(1.0626-0.78661*(B87/B88)>1,1,1.0626-0.78661*(B87/B88))) -> 0.9127695238 | C91: =(IF(1.0626-0.78661*(C87/C88)>1,1,1.0626-0.78661*(C87/C88))) -> 0.9127695238 | D91: =(IF(1.0626-0.78661*(D87/D88)>1,1,1.0626-0.78661*(D87/D88))) -> 0.9127695238 | E91: 1 | F91: =E91/$E$89 -> 0.1587301587 | G91: =0.9589-0.8654*F91 -> 0.8215349206 | H91: =1.0626-0.78661*F91 -> 0.9377412698 | I91: =1.1002-0.6001*F91 -> 1.004946032
A92: 22 | B92: =(IF(1.1002-0.6001*(B87/B88)>1,1,1.1002-0.6001*(B87/B88))) -> 0.9858952381 | C92: =(IF(1.1002-0.6001*(C87/C88)>1,1,1.1002-0.6001*(C87/C88))) -> 0.9858952381 | D92: =(IF(1.1002-0.6001*(D87/D88)>1,1,1.1002-0.6001*(D87/D88))) -> 0.9858952381 | E92: 1.5 | F92: =E92/$E$89 -> 0.2380952381 | G92: 0.752852381 | H92: 0.8753119048 | I92: 0.9573190476
E93: 2 | F93: 0.3174603175 | G93: 0.6841698413 | H93: 0.8128825397 | I93: 0.9096920635
E94: 2.5 | F94: 0.3968253968 | G94: 0.6154873016 | H94: 0.7504531746 | I94: 0.8620650794
E95: 3 | F95: 0.4761904762 | G95: 0.5468047619 | H95: 0.6880238095 | I95: 0.8144380952
E96: 3.5 | F96: 0.5555555556 | G96: 0.4781222222 | H96: 0.6255944444 | I96: 0.7668111111
E97: 4 | F97: 0.6349206349 | G97: 0.4094396825 | H97: 0.5631650794 | I97: 0.719184127
E98: 4.5 | F98: 0.7142857143 | G98: 0.3407571429 | H98: 0.5007357143 | I98: 0.6715571429
E99: 5 | F99: 0.7936507937 | G99: 0.2720746032 | H99: 0.4383063492 | I99: 0.6239301587
E100: 5.5 | F100: 0.873015873 | G100: 0.2033920635 | H100: 0.3758769841 | I100: 0.5763031746
A101: things to add to the macro | E101: 6 | F101: 0.9523809524 | G101: 0.1347095238 | H101: 0.313447619 | I101: 0.5286761905
G102: 3.8 | H102: 3.4 | I102: 2.8 | J102: Irms
A103: Check the Cramp voltage level | G103: 2.2 | H103: 2.8 | I103: 4 | J103: esr

Sheet Layout Checklist (hidden)
A1: Pin | B1: Name | C1: Purpose | D1: Placement or Routing? | E1: Remarks | F1: Reasoning | G1: Status | H1: Comments
A2: Control
B3: FB | C3: Output voltage feedback input. | E3: Place the feedback resistor near the device to minimize the FB trace distance. Avoid routing near noisy signals or power planes. | G3: Open
B4: GOSNS | C4: The return connection for a remote voltage sensing configuratio | E4: The return connection for a remote voltage sensing configuration. Short to AGND for single-end sense configuration | G4: Open
B5: AGND | E5: Return the FSEL and MODE resistors to a quiet AGND island. Connect AGND to PGND at one point. | G5: Open
A7: Configuration
B8: MSEL | E8: Return the FSEL and MSEL resistors to a quiet AGND island | G8: Open
B9: SYNC/FSEL | E9: Return the FSEL and MSEL resistors to a quiet AGND island
B10: PGOOD | C10: Open drain power good | G10: Open
B11: EN | C11: enable pin | E11: The recommended operating condition for EN pin is maximum 5.5-V. DO NOT connect EN pin to VIN pin directly. | G11: Open
A14: Power Stage
A15: 7 | B15: BOOT | E15: Place the boot circuit as close as possible to the pin. | G15: Open
A16: 6 | B16: SW | E16: The PCB trace defined as SW switch node, which connects the SW pins and high-voltage side of the inductor, should be as short and wide as possible. | G16: Open
A17: 4, 9 | B17: VIN | C17: Power Input to the Power Stage | E17: Place a 1-μF/25-V/X6R or better dielectric ceramic capacitors from each VIN to PGND pins and place them as close as possible to the device on the same side of the PCB. Place the remaining ceramic input capacitance next to these high frequency bypass capacitors. The remaining input capacitance can be placed on the other side of the board but use as many vias as possible to minimize impedance between the capacitors and the pins of the IC. 1-μF capacitor from each VIN to PGND close to the IC is required. | G17: Open
A18: 16, 17, 8, 5 | B18: PGND | C18: These ground pins are connected to the return of the internal low-side MOSFET. | E18: Have a large solid ground plane for GND. Use vias to help with power dissipation | G18: Open
A19: 3 | B19: VDRV | C19: Internal 5-V regulator output and internal connection to drivers. | E19: Bypass these pins with a 2.2-μF capacitor to PGND. Ensure the VDRV capacitor loop is smallest | G19: Open
A20: 2 | B20: VCC | C20: Supply for analog control circuitry | E20: Connect a 10-Ω resistor from VDRV to this pin and bypass with a 0.1-μF capacitor to AGND | G20: Open

Sheet Schematic Checklist (hidden)
A1: Pin | B1: Name | C1: Purpose | D1: Connection For Functional Use | E1: Reasoning | F1: Recommended Component Values from Calculator | G1: Component units | H1: Status | I1: Comments
A2: Control
A3: 15 | B3: FB | C3: Output voltage feedback input. | D3: Feedback pin and input to the differential remote sense amplifier for output voltage regulation. Place the bottom resistor in the FB divider as close as possible to the FB and GOSNS pins of the IC. Also keep the upper feedback resistor and the feedforward capacitor near the IC. Connect the FB divider to the output voltage at the desired point of regulation Connect FB pin to the midpoint of a resistor divider to set the output voltage. | E3: Placement near device reduces noise pickup Using Rfb_b between 1kOhm to 20kOhm | F3: =CONCATENATE("Rfb_t= ",DeviceCalculator!D173," Rfb_b=", DeviceCalculator!Rfb_b) -> Rfb_t= 11.3 Rfb_b=8 | G3: =DeviceCalculator!G171 -> kΩ | H3: Open
A4: 15 | B4: FB | C4: Feedforward Capacitor | D4: Adding a Cff in parallel with the Rfb_t can be beneficial | E4: Adding a Cff may help improve transient response
A5: 14 | B5: GOSNS | C5: Ground sense return and input to the differential remote sense amplifier | D5: For differential remote sense, connect to remote ground near the load | H5: Open
A6: 14 | B6: GOSNS | D6: For single ended sense, connect GOSNS to AGND
A8: 1 | B8: AGND | C8: Reference point for the internal control circuits. | D8: Use a separate ground symbol for AGND. Use vias on the AGND islands on top layer to connect to AGND layer island on an internal layer. Connect the internal AGND island to PGND at one point | E8: AGND is expected to be a quiet ground | H8: Open
A11: Configuration
A12: 10 | B12: EN | D12: Floating EN pin before startup enables the converter. DO NOT connect EN pin to VIN pin directly. If an application requires digital control of the ENABLE function, an open-drain or open-collector output logic can be interfaced with the pin. An external resistor divider can be added from VIN to the EN pin for adjustable UVLO | E12: The recommended max voltage on the EN pin is 5.5V. Typical turn on threshold voltage is 1.2 V for the converter. The VDRV turns on at 0.7V enable threshold | F12: =CONCATENATE("Ren_t= ", DeviceCalculator!E201," Ren_b=", DeviceCalculator!E204) -> Ren_t= 8.06 Ren_b=10000 | G12: =DeviceCalculator!G204 -> kΩ | H12: Open
A13: 12 | B13: SYNC/FSEL | D13: Frequency select and external clock synchronization. A resistor to ground sets the switching frequency of the device. An external clock can also be applied to this pin to synchronize the switching frequency. Return the FSEL and MSEL resistors to a quiet AGND island. Use a 1% tolerance resistor or better | F13: =CONCATENATE("Rfsel= ", DeviceCalculator!R_fsel) -> Rfsel= 11.8 | G13: =DeviceCalculator!G42 -> kΩ | H13: Open
A14: 13 | B14: MSEL | D14: A resistor to ground selects the current limit, soft-start rate, and PWM ramp amplitude. Return the FSEL and MSEL resistors to a quiet AGND island. Use a 1% tolerance resistor or better | F14: =CONCATENATE("Rmsel= ", DeviceCalculator!R_msel) -> Rmsel= 102 | G14: =DeviceCalculator!G69 -> kΩ | H14: Open
A15: 11 | B15: PG | D15: Open-drain power-good (PG) indicator. Use a pull up resistor to VDRV, VCC or an external supply. s. A pullup resistor between the values of 10 kΩ and 100 kΩ to a voltage source that is 5.5 V or less is recommended | H15: Open
A16: 2 | B16: VCC | D16: Supply for analog control circuitry. Connect a 10-Ω resistor from VDRV to this pin and bypass with a 0.1-μF capacitor to AGND. It is not intended to drive VCC with any source other than VDRV | E16: The 10-Ω and 0.1-μF create a low pass filter to the supply pin VCC | H16: Open
H17: Open
A20: Power Stage
A21: 7 | B21: BOOT | D21: Place the BOOT-SW capacitor as close as possible to the BOOT and SW pins. Use a 0.1-μF/16-V/X6R or better dielectric ceramic capacitor for the BOOT capacitor | E21: TI recommends using a 0.1-µF to 1-µF bootstrap capacitor with 10-V rating. It is good practice to use a 0-Ω resistor in series with BOOT capacitor. | H21: Open
A22: 6 | B22: SW | D22: Output switching terminal of the power converter. Connect this pin to the output inductor. Place the inductor as close as possible to the device | E22: Placing closed to device minimizes the length of the SW node routing | H22: Open
A23: 4, 9 | B23: VIN | D23: Place a 1-μF/25-V/X6R or better dielectric ceramic capacitors from each VIN to PGND pins and place them as close as possible to the device on the same side of the PCB. Place the remaining ceramic input capacitance next to these high frequency bypass capacitors. The remaining input capacitance can be placed on the other side of the board but use as many vias as possible to minimize impedance between the capacitors and the pins of the IC. VIN, PGND, and SW traces must be as wide as possible to reduce trace impedance and improve heat dissipation. Use vias and traces on others layers to reduce VIN and PGND trace impedance | E23: Use vias near both VIN pins and provide a low impedance connection between VIN pins through an internal layer VIN decoupling capacitors are important for FET robustness. | H23: Open
B24: VIN | D24: This supply voltage must be well regulated. Proper bypassing of the input supply is critical for proper electrical performance, as is the PCB layout and the grounding scheme. A minimum of 10-μF (after derating) ceramic capacitance, type X5R or better, must be placed near the device. TI recommends splitting the ceramic input capacitance equally between the VIN and PGND pins on each side of the device resulting in at least 5 µF of ceramic capacitance on each side of the device
A25: 5, 8, 16,17 | B25: PGND | D25: Use multiple vias near the PGND pins and use the layer directly below the device to connect them together | E25: Multiple vias helps to minimize noise and can improve heat dissipation. | G25: nF Ω | H25: Open
A26: 3 | B26: VDRV | D26: Internal 5-V regulator output and internal connection to drivers. Bypass these pins with a 2.2-μF/10V to 10-μF/10V with X6R or better dielectric capacitor to PGND. It is not intended to connect VDRV to any external source or external load. | H26: Open
H37: Open
H38: Open
H39: Open
H43: Open

Sheet revisionNotes
A1: Rev | B1: Date | C1: Change
A2: A | B2: 2023-12-06 | C2: Initial

Sheet Disclaimer
A1: Important notice and disclaimer
A2: TI PROVIDES TECHNICAL AND RELIABILITY DATA (INCLUDING DATASHEETS), DESIGN RESOURCES (INCLUDING REFERENCE DESIGNS), APPLICATION OR OTHER DESIGN ADVICE, WEB TOOLS, SAFETY INFORMATION, AND OTHER RESOURCES “AS IS” AND WITH ALL FAULTS, AND DISCLAIMS ALL WARRANTIES, EXPRESS AND IMPLIED, INCLUDING WITHOUT LIMITATION ANY IMPLIED WARRANTIES OF MERCHANTABILITY, FITNESS FOR A PARTICULAR PURPOSE OR NON-INFRINGEMENT OF THIRD PARTY INTELLECTUAL PROPERTY RIGHTS.
A3: These resources are intended for skilled developers designing with TI products. You are solely responsible for (1) selecting the appropriate TI products for your application, (2) designing, validating and testing your application, and (3) ensuring your application meets applicable standards, and any other safety, security, or other requirements.
A4: These resources are subject to change without notice. TI grants you permission to use these resources only for development of an application that uses the TI products described in the resource. Other reproduction and display of these resources is prohibited. No license is granted to any other TI intellectual property right or to any third party intellectual property right. TI disclaims responsibility for, and you will fully indemnify TI and its representatives against, any claims, damages, costs, losses, and liabilities arising out of your use of these resources.
A5: TI’s products are provided subject to TI’s Terms of Sale or other applicable terms available either on ti.com or provided in conjunction with such TI products. TI’s provision of these resources does not expand or otherwise alter TI’s applicable warranties or warranty disclaimers for TI products.
A6: All information in this document is provided “AS IS” and “with all faults”, and is subject to TI’s Important Notice (http://www.ti.com/corp/docs/legal/important-notice.shtml)

Sheet DeviceCalculator_old (hidden)
B1: Design Calculations | J1: Key
B2: Parameter | C2: Input | D2: Recommended | E2: Selected Value | F2: Calculated with Selected Value | G2: Units | H2: Description | J2: User Entered Value
J3: Fixed IC Parameter
J4: Calculated Parameter
J5: Recommended Component Value
J6: Design Caution
J7: Design Warning
B8: Choose Device
B9: Part number | C9: TPS543B22 | H9: Select IC part number
B10: Vin_min_IC | C10: =VLOOKUP($C$9,#REF!,2,FALSE) ->  | G10: V | H10: IC rated minimum input voltage
B11: Vin_max_IC | C11: =VLOOKUP($C$9,#REF!,3,FALSE) ->  | G11: V | H11: IC rated maximum input voltage
B12: Vref | C12: =VLOOKUP($C$9,#REF!,9,FALSE) ->  | G12: V | H12: Internal voltage reference
B13: Io_max_IC | C13: =VLOOKUP($C$9,#REF!,4,FALSE) ->  | G13: A | H13: IC rated maximum output current
B14: EN_rise | C14: =VLOOKUP($C$9,#REF!,12,FALSE) ->  | G14: V | H14: EN rising voltage threshold
B15: EN_rise_max | C15: =VLOOKUP($C$9,#REF!,17,FALSE) ->  | G15: V | H15: EN rising voltage threshold (maximum spec)
B16: EN_fall | C16: =VLOOKUP($C$9,#REF!,13,FALSE) ->  | G16: V | H16: EN falling voltage threshold
B17: OC_high_min | C17: =VLOOKUP($C$9,#REF!,5,FALSE) ->  | G17: A | H17: Minimum peak current limit for High current limits
B18: OC_low_min | C18: =VLOOKUP($C$9,#REF!,6,FALSE) ->  | G18: A | H18: Minimum peak current limit for Low current limits
B19: ton_min_max | C19: =VLOOKUP($C$9,#REF!,7,FALSE) ->  | G19: ns | H19: Worst case minimum on-time
B20: toff_min_max | C20: =VLOOKUP($C$9,#REF!,8,FALSE) ->  | G20: ns | H20: Worst case minimum off-time
B21: Rdson_HS | C21: =VLOOKUP($C$9,#REF!,10,FALSE) ->  | G21: mΩ | H21: High-side FET Rdson
B22: Rdson_LS | C22: =VLOOKUP($C$9,#REF!,11,FALSE) ->  | G22: mΩ | H22: Low-side FET Rdson
B23: Input System Parameters
B24: Vin_min | C24: 4.5 | G24: V | H24: Minimum input voltage
B25: Vin_nom | C25: 12 | G25: V | H25: Nominal input voltage
B26: Vin_nom | C26: 12 | G26: V | H26: Nominal input voltage
B27: Vin_max | C27: 18 | G27: V | H27: Maximum input voltage
B28: Vout | C28: 1 | G28: V | H28: Output voltage
B29: Iout | C29: 20 | G29: A | H29: Maximum output current
B30: E12 Resistor Values? | C30: No | H30: If using E12 resistor values, tolerance still must be 1%
B31: Select the Switching Frequency (FSEL pin)
B32: fsw_max_ton | D32: =IF((1/(ton_min_max*10^-9))*(Vout)/(Vin_max)*1/1.1>=2.2*10^6,2.2*10^6,(1/(ton_min_max*10^-9))*(Vout)/(Vin_max)*1/1.1)*10^-3 ->  | E32: =(Vout/Vin_max)*(1/(ton_min_max*10^-9))*(1/1.1) ->  | G32: kHz | H32: Maximum fsw limited by Vin_max and minimum on-time
B33: fsw_max_toff | D33: =IF((Vin_min-Vout-Iout*2*(DCR_Ohm+Rdson_HS_Ohm))/(toff_min_max_sec*(Vin_min-Iout*2*(Rdson_HS_Ohm-Rdson_LS_Ohm)))*10^-3>=2200,2200,(Vin_min-Vout-Iout*2*(DCR_Ohm+Rdson_HS_Ohm))/(toff_min_max_sec*(Vin_min-Iout*2*(Rdson_HS_Ohm-Rdson_LS_Ohm)))*10^-3) ->  | G33: kHz | H33: Maximum fsw allowed limited by Vin_min and minimum off-time (Depends on inductor DCR and includes 2x multiplier on resistance for margin, if red check input voltage levels)
B34: fsw_rec | D34: =MIN(1000,VLOOKUP(TRUE,#REF!,2,FALSE)) ->  | G34: kHz | H34: Recommended max fsw setting
B35: fsw_input | C35: 1000 | G35: kHz | H35: Select the fsw option
B36: R_fsel_rec | D36: =IF(C30="No", VLOOKUP(C35,#REF!,2,0), VLOOKUP(C35,#REF!,3,0)) ->  | G36: kΩ | H36: Recommended FSEL resistor for selected fsw
B37: R_fsel | E37: 11.8 | G37: kΩ | H37: Selected FSEL resistor value
B38: fsw_select | F38: =IF(OR(#REF!),VLOOKUP(TRUE,#REF!,3,FALSE),"Invalid R_fsel") ->  | G38: kHz | H38: fsw with selected FSEL resistor (if red check input voltages)
B39: Choose the Output Inductor (Lout)
B40: The inductance is selected based on a p-p ripple current target. Smaller L reduces solution size while larger L reduces AC loss.
B41: Kind | C41: 0.2 | H41: Target ripple/Iout ratio (typically between 0.2 to 0.4)
B42: L_target | D42: =(1/(Kind*Iout*(fsw_select/1000))*(((Vin_max-Vout)*Vout)/Vin_max)) ->  | G42: µH | H42: Target inductor value
B43: L_min | D43: =((Vin_max-Vout)*Vout)/(Io_max_IC*0.5*Vin_max*fsw_select)*1000 ->  | G43: µH | H43: Minimum recommended inductance (ripple = 50% Iout_max_IC)
B44: L_max | D44: =((Vin_max-Vout)*Vout)/(Io_max_IC*0.05*Vin_max*fsw_select)*1000 ->  | G44: µH | H44: Maximum recommended inductance (ripple = 5% Iout_max_IC)
B45: L_rec | D45: =MIN(MAX(D43,D42),D44) ->  | G45: µH | H45: Recommended inductor value
B46: Lout | E46: 0.22 | G46: µH | H46: Selected inductance
B47: DCR | E47: 0.3 | G47: mΩ | H47: DC resistance of selected inductor
B48: Tol_L | E48: 0 | H48: Tolerance of inductance for selected inductor
B49: Isat | E49: 30 | H49: Inductor Saturation Current
B50: Inductor Part Number | E50: 744303022 | H50: Inductor Part Number
B51: Iripple_max | E51: =1000*((Vin_nom-Vout)*Vout)/(Lout*(1-0)*Vin_nom*fsw_select) ->  | F51: =1000*((Vin_max-Vout)*Vout)/(Lout*(1-Tol_L)*Vin_max*fsw_select) ->  | G51: A | H51: Inductor ripple current at Vin_max (includes Tol_L, used for DC ripple calculations) (Red if >50% of Iout rate)
B52: Ipeak_max | F52: =Iout+(Iripple_max/2) ->  | G52: A | H52: Full load peak current at Vin_max
B53: Irms | F53: =SQRT(Iout^2+Iripple_max^2) ->  | G53: A | H53: Inductor rms current at Vin_max
B54: Iripple_min | F54: =1000*((Vin_min-Vout)*Vout)/(Lout*(1+Tol_L)*Vin_min*fsw_select) ->  | H54: Inductor ripple current at Vin_min (includes Tol_L)
B55: Ivalley | F55: =Iout-(Iripple_min/2) ->  | G55: A | H55: Full load valley current at Vin_min (used for I_lim calculations)
B56: Choose the Output Capacitor (Cout)
B57: The output capacitance is deteremind based on the output ripple, transient and stability requirements. These calculations do not support mixed type output capacitors.
B58: Io_step | C58: 10 | G58: A | H58: Iout load transient step
B59: dVo_perc | C59: 0.03 | H59: dVo percent
B60: dVo_trans | C60: 0.05 | G60: V | H60: Target Vout overshoot/undershoot after load step
B61: dVo_dc | C61: 0.02 | G61: V | H61: Target steady state Vout voltage ripple
B62: Cout_ripple | D62: =Iripple_max/(8*dVo_dc*fsw_Hz)*10^6 ->  | G62: µF | H62: Min Cout for DC ripple requirement (ignores ESR)
B63: Cout_trans | D63: =Io_step/(2*PI()*fsw_Hz/10*dVo_trans)*10^6 ->  | G63: µF | H63: Min Cout for transient requirement assuming fco = fsw/10
B64: Cout_overshoot | D64: =Lout*Io_step^2/(2*Vout*dVo_trans) -> 687.5 | G64: µF | H64: Min Cout for overshoot requirement based on inductor current slew rate
B65: Cout_undershoot | D65: =(Lout_H*Io_step^2/(2*(Vin_min-Vout)*dVo_trans) + Io_step*(1-Vout/Vin_min)*1/fsw_Hz/(dVo_trans))*10^6 ->  | G65: µF | H65: Min Cout for undershoot requirement based on inductor current slew rate
B66: Cout_stability | D66: =(30/(2*PI()*fsw_Hz))^2*1/Lout_H*1000000 ->  | G66: µF | H66: Min Cout for stability (f_LC < fsw/30)
B67: Cout_min | D67: 330 | G67: µF | H67: Recommended min Cout (must include any derating due to DC/AC bias, temp and/or tolerance)
B68: Cout_max | D68: =(150/(2*PI()*fsw_Hz))^2*1/Lout_H*1000000 ->  | G68: µF | H68: Max Cout for stability (f_LC > fsw/150) (Exceeding this is typically ok but validation of loop stability is highly recommended)
B69: ESR_trans | D69: =dVo_trans/Io_step*1000 -> 2.4 | G69: mΩ | H69: Max ESR to meet load step transient requirement
B70: ESR_ripple | D70: =dVo_dc/Iripple_max*1000 ->  | G70: mΩ | H70: Max ESR to meet ripple requirement
B71: ESR_max | D71: =MIN(D69:D70) ->  | G71: mΩ
B72: N_Cout_cer | E72: 6 | H72: Number of output capacitors
B73: Cout_single_cer | E73: 100 | G73: µF | H73: Nominal value of single ceramic output capacitor
B74: Cer_derating | E74: 0.9 | H74: Remaining output capacitance after derating due to DC/AC bias, temp and/or tolerance
B75: ESR_single_cer | E75: 3 | G75: mΩ | H75: ESR of output single ceramic output capacitor
B76: Cer Voltage Rating | E76: 6.3 | G76: V | H76: Voltage Rating of Ceramic Capacitor
B77: Cout_cer_eff | F77: =Cout_single_cer*N_Cout_cer*Cer_derating -> 540 | G77: µF | H77: Effective Cout (If red, not enough capacitance)
B78: ESR_cer_eff | F78: =ESR_single_cer/N_Cout_cer -> 0.5 | G78: mΩ | H78: Effective ESR
B79: N_Cout_bulk | E79: 4 | H79: Number of Bulk Capacitors
B80: Cout_single_bulk | E80: 470 | G80: uF | H80: Nominal value of a Single Bulk/Polymer/Electrolytic Output Capacitor
B81: Bulk_derating | E81: 1 | H81: Percentage of Nominal Bulk Capacitance remaining after tolerance, temperature, and/or lifetime
B82: Bulk Voltage Rating | E82: 0.063 | H82: Voltage Rating of Bulk Capacitor
B83: ESR_single_bulk | E83: 1 | G83: mΩ | H83: Single Bulk Capacitor ESR
B84: Cout_bulk_eff | F84: =IF(N_Cout_bulk=0,0.001,N_Cout_bulk*E80*Bulk_derating) -> 1880 | G84: µF | H84: Total Bulk Output Capacitance
B85: ESR_bulk_eff | F85: =IF(N_Cout_bulk=0,10^9,E83/N_Cout_bulk) -> 0.25 | G85: mΩ | H85: Effective Bulk Capacitance ESR
B86: Cout | F86: =Cout_bulk_eff+Cout_cer_eff -> 2420 | G86: uF | H86: Total Bulk + Ceramic Output Capacitance
B87: f_LC | F87: =1/(2*PI()*SQRT(Lout_H*Cout_F))*0.001 -> 12.6325383 | G87: kHz | H87: LC resonant frequency
B88: fz_ESR_cer | F88: =IF(N_Cout_cer=0,10^6,1/(2*PI()*Cout_cer_eff_F*ESR_cer_eff_Ohm)*10^-3) -> 589.4627522 | G88: kHz | H88: Ceramic capacitor ESR zero frequency
B89: fz_ESR_bulk | F89: =IF(N_Cout_bulk=0,10^6,1/(2*PI()*Cout_bulk_eff_F*ESR_bulk_eff_Ohm)*10^-3) -> 338.6275385 | G89: kHz | H89: Bulk capacitor ESR zero frequency (if yellow, ESR zero may limit loop bandwidth)
B90: Transient response estimations with selected output caps
B91: fco_est | D91: =fsw_select/10 ->  | G91: kHz | H91: Loop bandwidth estimate of fsw_select/10
B92: Zcer_fco | F92: =(1/(2*PI()*fco_Hz*Cout_cer_eff_F)*10^3) -> 2.947313761 | G92: mΩ | H92: Estimated output cap impedance at fsw/10
B93: Zbulk_fco | F93: =SQRT((1/(2*PI()*fco_Hz*Cout_bulk_eff_F))^2+ESR_bulk_eff_Ohm^2)*10^3 -> 0.8827110577 | G93: mΩ | H93: Bulk capacitor impedance at fsw
B94: Zcout_fco | F94: =Zcer_fco*Zbulk_fco/(Zcer_fco+Zbulk_fco) -> 3.308834577 | G94: mΩ | H94: Combined output capacitor impedance at fsw
B95: Vo_trans | F95: =Io_step*Zcout_fco -> 33.08834577 | G95: mV | H95: Estimated transient overshoot/undershoot based on loop bandwidth estimate
B96: Vo_overshoot | F96: =(Lout_H*Io_step^2/(2*Vout*Cout_F))*1000 -> 34.3035343 | G96: mV | H96: Estimated overshoot based on inductor current slew rate
B97: DC output ripple estimations with selected output caps
B98: Zcer_fsw | F98: =SQRT((1/(2*PI()*fsw_Hz*Cout_cer_eff_F))^2+ESR_cer_eff_Ohm^2)*10^3 ->  | G98: mΩ | H98: Ceramic capacitor impdance at fsw
B99: Zbulk_fsw | F99: =SQRT((1/(2*PI()*fsw_Hz*Cout_bulk_eff_F))^2+ESR_bulk_eff_Ohm^2)*10^3 ->  | G99: mΩ | H99: Bulk capacitor impedance at fsw
B100: Zcout_fsw | F100: =Zcer_fsw*Zbulk_fsw/(Zcer_fsw+Zbulk_fsw) -> 0.5976973962 | G100: mΩ | H100: Combined output capacitor impedance at fsw
B101: Vo_ripple | F101: =Iripple_max*Zcout_fsw ->  | G101: mV | H101: Estimated capacitive + resistive DC ripple (ignores ESL)
B102: Choose the Input Capacitor (Cin)
B103: The input capacitance is deteremind based on the input ripple requirements. Additional bulk input capacitance may be needed for transients. 0.1µF high frequency bypass capacitors are also required.
B104: Vi_ripple_perc | C104: 0.04 | H104: Target DC input voltage ripple percentage
B105: Vi_ripple_rec | D105: =Vin_min*Vi_ripple_perc*1000 -> 180 | G105: mV | H105: Recommended DC input voltage ripple (based on Vin_min)
B106: Vi_ripple_target | C106: =D105 -> 180 | G106: mV | H106: Target DC input voltage ripple
B107: Cin_min | D107: =MAX(4.7,(Iout*0.25)/(Vi_ripple_target*fsw_select)*10^6) ->  | G107: µF | H107: Minimum input capacitance required (include derating)
B108: N_Cin_Cer | D108: 2
B109: Cin_Single_cer | D109: =22+100+10 -> 132
B110: Cin_cer_derating | D110: 0.5
B111: Cin | E111: 132 | G111: µF | H111: Effective input ceramic cap used (include derating)
B112: Cin Voltage Rating | E112: 25 | H112: Voltage Rating
B113: Vi_ripple | F113: =(Iout*Vout/Vin_max*(1-Vout/Vin_max))/(Cin*fsw_select)*10^6 ->  | G113: mV | H113: Input DC ripple
B114: Iin_rms | F114: =Iout*SQRT(Vout/Vin_min*(Vin_min-Vout)/Vin_min) -> 8.314794193 | G114: A | H114: Input RMS current
B115: Determine feedback network values (FB resistor divider and Cff)
B116: Rfb_b_rec | D116: 4.99 | G116: kΩ | H116: Bottom feedback resistor (1k-20k recommended)
B117: Rfb_b | E117: 7.153024911 | G117: kΩ | H117: Selected bottom feedback resistor
B118: Rfb_t_target | D118: =Rfb_b*(Vout/Vref-1) ->  | G118: kΩ | H118: Calculated top resistor
B119: Rfb_t_std | D119: =(IF((10^(LOG(D118)-INT(LOG(D118)))*100)-VLOOKUP((10^(LOG(D118)-INT(LOG(D118)))*100),E96_s:E96_f,1)<VLOOKUP((10^(LOG(D118)-INT(LOG(D118)))*100),E96_s:E96_f,2)-(10^(LOG(D118)-INT(LOG(D118)))*100),VLOOKUP((10^(LOG(D118)-INT(LOG(D118)))*100),E96_s:E96_f,1),VLOOKUP((10^(LOG(D118)-INT(LOG(D118)))*100),E96_s:E96_f,2)))*10^INT(LOG(D118))/100 ->  | G119: kΩ | H119: Closest 1% standard resistor value
B120: Rfb_t | E120: 10 | G120: kΩ | H120: Selected top resistor
B121: Vout_calc | F121: =Vref*(1+Rfb_t/Rfb_b) ->  | G121: V | H121: Calculated Vout (yellow if not within 1% of target Vout)
B122: Cff_rec | D122: =1/(2*PI()*(fsw_select/4)*Rfb_t)*1000000 ->  | G122: pF | H122: Recommended feedforward cap value (fz_Cff = fsw/4)
B123: Cff_rec_std | D123: =IF(Cff_rec<10000,VLOOKUP((10^(LOG(Cff_rec)-INT(LOG(Cff_rec)))),c_s1:C_f1,1),VLOOKUP((10^(LOG(Cff_rec)-INT(LOG(Cff_rec)))),C_s2:C_f2,1))*10^INT(LOG(Cff_rec)) ->  | G123: pF | H123: Cpole recommended nearest standard value
B124: Cff | E124: 120 | G124: pF | H124: Selected feedforward cap value
B125: Rff_rec | D125: =Rfb_t/20 -> 0.5 | G125: kΩ | H125: Recommended feedforward resistor
B126: Rff_rec_std | D126: =(IF((10^(LOG(D125)-INT(LOG(D125)))*100)-VLOOKUP((10^(LOG(D125)-INT(LOG(D125)))*100),E96_s:E96_f,1)<VLOOKUP((10^(LOG(D125)-INT(LOG(D125)))*100),E96_s:E96_f,2)-(10^(LOG(D125)-INT(LOG(D125)))*100),VLOOKUP((10^(LOG(D125)-INT(LOG(D125)))*100),E96_s:E96_f,1),VLOOKUP((10^(LOG(D125)-INT(LOG(D125)))*100),E96_s:E96_f,2)))*10^INT(LOG(D125))/100 -> 0.499 | G126: kΩ | H126: Selected feedforward resistor value
B127: Rff | E127: 0.5 | G127: kΩ | H127: Selected feedforward resistor value
B128: fz_cff | F128: =IF(Cff<>0,1/(2*PI()*Cff*0.000000001*(Rfb_t+Rff)*1000),"N/A") -> 126.3134469 | G128: kHz | H128: Frequency of zero added by the feedforward cap
B129: Select the Soft Start Time, Current Limit and Ramp (MODE pin)
B130: I_lim_rec | D130: =IF(F52>OC_low_min, "High", "Low") ->  | H130: Recommended Ilim selection
B131: I_lim_tgt | C131: High | H131: Target Ilim
B132: fsw_div_fLC | D132: =IF(f_ESR_bulk>fsw_select/10,fsw_select/f_LC,fsw_select/(1/(2*PI()*SQRT(Lout_H*Cout_cer_eff_F))*10^-3)) ->  | H132: Used to set ramp recommendation
B133: Ramp_rec | D133: =#REF! ->  | G133: pF | H133: Recommended ramp selection
B134: Ramp_tgt | C134: 4 | G134: pF | H134: Target ramp
B135: Soft_start_time_tgt | C135: 1 | G135: ms | H135: Target soft start time
B136: R_mode_rec | D136: =IF(C30="No", VLOOKUP(CONCATENATE(C131, C134, C135),#REF!, 6, 0), VLOOKUP(CONCATENATE(C131, C134, C135),#REF!, 7, 0)) ->  | G136: kΩ | H136: Recommended MODE pin resistance value
B137: R_mode | E137: 11.3 | G137: kΩ | H137: Selected MODE pin resistance value
B138: I_lim_sel | F138: =IF(#REF!,VLOOKUP(TRUE,#REF!,2,FALSE),"Invalid Rmode") ->  | H138: Selected Ilim
B139: Ramp_sel | F139: =IF(#REF!,VLOOKUP(TRUE,#REF!,3,FALSE),"Invalid Rmode") ->  | G139: pF | H139: Selected ramp
B140: SS_sel | F140: =IF(#REF!,VLOOKUP(TRUE,#REF!,4,FALSE),"Invalid Rmode") ->  | G140: ms | H140: Selected soft start time
B141: EN pin resistor divider
B142: Vstart | C142: 4.53 | G142: V | H142: UVLO startup voltage (Red if Vstart < 1.1*Vstop)
B143: UVLO_stop_rec_max | D143: =Vstart/1.1 -> 4.118181818 | G143: V | H143: Maximum recommended UVLO shutdown voltage. Limited by voltage hysteresis on EN pins.
B144: Vstop | C144: 4 | G144: V | H144: UVLO shutdown voltage (Red if Vstart < 1.1*Vstop)
B145: Ren_t_rec | D145: =(Vstart*(EN_fall/EN_rise)-Vstop)/(I_p1*(1-EN_fall/EN_rise)+I_h)/1000 ->  | G145: kΩ | H145: Calculated top resistor
B146: Ren_t_std | D146: =(IF((10^(LOG(D145)-INT(LOG(D145)))*100)-VLOOKUP((10^(LOG(D145)-INT(LOG(D145)))*100),E96_s:E96_f,1)<VLOOKUP((10^(LOG(D145)-INT(LOG(D145)))*100),E96_s:E96_f,2)-(10^(LOG(D145)-INT(LOG(D145)))*100),VLOOKUP((10^(LOG(D145)-INT(LOG(D145)))*100),E96_s:E96_f,1),VLOOKUP((10^(LOG(D145)-INT(LOG(D145)))*100),E96_s:E96_f,2)))*10^INT(LOG(D145))/100 ->  | G146: kΩ | H146: Closest 1% standard resistor value
B147: Ren_t | E147: 16.9 | G147: kΩ | H147: Selected bottom resistor
B148: Ren_b_calc | D148: =(Ren_t*EN_fall)/((Vstop-EN_fall)+Ren_t*I_p2)/1000 ->  | G148: kΩ | H148: Calculated top resistor
B149: Ren_b_std | D149: =(IF((10^(LOG(D148)-INT(LOG(D148)))*100)-VLOOKUP((10^(LOG(D148)-INT(LOG(D148)))*100),E96_s:E96_f,1)<VLOOKUP((10^(LOG(D148)-INT(LOG(D148)))*100),E96_s:E96_f,2)-(10^(LOG(D148)-INT(LOG(D148)))*100),VLOOKUP((10^(LOG(D148)-INT(LOG(D148)))*100),E96_s:E96_f,1),VLOOKUP((10^(LOG(D148)-INT(LOG(D148)))*100),E96_s:E96_f,2)))*10^INT(LOG(D148))/100 ->  | G149: kΩ | H149: Closest 1% standard resistor value
B150: Ren_b | E150: 6.04 | G150: kΩ | H150: Selected top resistor
B151: Vstart_typ | F151: =EN_rise+Ren_t*(EN_rise-I_p1*Ren_b)/Ren_b ->  | G151: V | H151: Estimated typical turn on voltage with selected resistors (Yellow if < Vin_min)
B152: Vstart_max | F152: =EN_rise_max+Ren_t*(EN_rise_max-I_p1*Ren_b)/Ren_b -> 4.722166556 | G152: V | H152: Estimated maximum turn on voltage with selected resistors (Yellow if < Vin_min)
B153: Vstop_typ | F153: =EN_fall-(Ren_t*(I_p1*Ren_b-EN_fall+I_h*Ren_b))/Ren_b ->  | G153: V | H153: Estimated typical turn off voltage with selected resistors
B154: Vena max voltage | F154: =Vin_max*E150/(E147+E150) -> 4.739319965 | G154: V | H154: Max voltage with Ren_t and Ren_b and Vinmax
B155: Pen_divider | F155: =Vin_max*Vin_max/(Ren_b+Ren_t)*1000 -> 14.12380122 | G155: mW | H155: Power lost in EN divider at Vin_max
B156: VCC bypass capacitor, BOOT bypass capacitor, PGOOD resistor
B157: Cbp_rec | D157: 2.2 | G157: µF | H157: At least 1 µF required
B158: Cbp | E158: 2.2 | G158: µF | H158: Selected Cbp
B159: Cboot_rec | D159: 0.1 | G159: µF | H159: At least 0.1µF required
B160: Cboot | E160: 0.1 | G160: µF | H160: Selected Cboot
B161: Rboot_rec | D161: =IF(AND(C9="TPS543820",Vin_max>13.5),2.2,0) -> 0 | G161: µF | H161: Recommended series Rboot. Required for 8A device with Vin_max>13.5V
B162: Rboot | E162: 0 | G162: µF | H162: Selected Rboot.
B163: Rpg_rec | D163: 100 | G163: kΩ | H163: 10k-100k recommended
B164: Rpg | E164: 100 | G164: kΩ | H164: Selected Rpg

Sheet Std. R and C Values (hidden)
A1: Hide Sheet
E2: Std. Resistors | J2: Capacitors
B3: Enter resistor value | C3: 25 | E3: E6 | G3: E96 | J3: Cap value | K3: 1500 | L3: pF
E4: 100 | F4: 150 | G4: 100 | H4: 102 | K4: =IF(K3*10^12<10000,IF((10^(LOG(K3*10^12)-INT(LOG(K3*10^12))))-VLOOKUP((10^(LOG(K3*10^12)-INT(LOG(K3*10^12)))),c_s1:C_f1,1)<VLOOKUP((10^(LOG(K3*10^12)-INT(LOG(K3*10^12)))),c_s1:C_f1,2)-(10^(LOG(K3*10^12)-INT(LOG(K3*10^12)))),VLOOKUP((10^(LOG(K3*10^12)-INT(LOG(K3*10^12)))),c_s1:C_f1,1),VLOOKUP((10^(LOG(K3*10^12)-INT(LOG(K3*10^12)))),c_s1:C_f1,2))*10^INT(LOG(K3*10^12)),IF((10^(LOG(K3*10^12)-INT(LOG(K3*10^12))))-VLOOKUP((10^(LOG(K3*10^12)-INT(LOG(K3*10^12)))),C_s2:C_f2,1)<VLOOKUP((10^(LOG(K3*10^12)-INT(LOG(K3*10^12)))),C_s2:C_f2,2)-(10^(LOG(K3*10^12)-INT(LOG(K3*10^12)))),VLOOKUP((10^(LOG(K3*10^12)-INT(LOG(K3*10^12)))),C_s2:C_f2,1),VLOOKUP((10^(LOG(K3*10^12)-INT(LOG(K3*10^12)))),C_s2:C_f2,2))*10^INT(LOG(K3*10^12)))*10^-12 -> 1500 | L4: pF
B5: Closest E6 Value | C5: =(IF((10^(LOG(C3)-INT(LOG(C3)))*100)-VLOOKUP((10^(LOG(C3)-INT(LOG(C3)))*100),E6_s:E6_f,1)<VLOOKUP((10^(LOG(C3)-INT(LOG(C3)))*100),E6_s:E6_f,2)-(10^(LOG(C3)-INT(LOG(C3)))*100),VLOOKUP((10^(LOG(C3)-INT(LOG(C3)))*100),E6_s:E6_f,1),VLOOKUP((10^(LOG(C3)-INT(LOG(C3)))*100),E6_s:E6_f,2)))*10^INT(LOG(C3))/100 -> 22 | E5: 150 | F5: 220 | G5: 102 | H5: 105
B6: Closest E12 Value | C6: =(IF((10^(LOG(C3)-INT(LOG(C3)))*100)-VLOOKUP((10^(LOG(C3)-INT(LOG(C3)))*100),E12_s:E12_f,1)<VLOOKUP((10^(LOG(C3)-INT(LOG(C3)))*100),E12_s:E12_f,2)-(10^(LOG(C3)-INT(LOG(C3)))*100),VLOOKUP((10^(LOG(C3)-INT(LOG(C3)))*100),E12_s:E12_f,1),VLOOKUP((10^(LOG(C3)-INT(LOG(C3)))*100),E12_s:E12_f,2)))*10^INT(LOG(C3))/100 -> 27 | E6: 220 | F6: 330 | G6: 105 | H6: 107 | J6: C values up to 10nF
B7: Closest E24 Value | C7: =(IF((10^(LOG(C3)-INT(LOG(C3)))*100)-VLOOKUP((10^(LOG(C3)-INT(LOG(C3)))*100),E24_s:E24_f,1)<VLOOKUP((10^(LOG(C3)-INT(LOG(C3)))*100),E24_s:E24_f,2)-(10^(LOG(C3)-INT(LOG(C3)))*100),VLOOKUP((10^(LOG(C3)-INT(LOG(C3)))*100),E24_s:E24_f,1),VLOOKUP((10^(LOG(C3)-INT(LOG(C3)))*100),E24_s:E24_f,2)))*10^INT(LOG(C3))/100 -> 24 | E7: 330 | F7: 470 | G7: 107 | H7: 110 | J7: 1 | K7: 1.2 | L7: =IF((10^(LOG(K3)-INT(LOG(K3))))-VLOOKUP((10^(LOG(K3)-INT(LOG(K3)))),c_s1:C_f1,1)<VLOOKUP((10^(LOG(K3)-INT(LOG(K3)))),c_s1:C_f1,2)-(10^(LOG(K3)-INT(LOG(K3)))),VLOOKUP((10^(LOG(K3)-INT(LOG(K3)))),c_s1:C_f1,1),VLOOKUP((10^(LOG(K3)-INT(LOG(K3)))),c_s1:C_f1,2)) -> 1.5
B8: Closest E48 Value | C8: =(IF((10^(LOG(C3)-INT(LOG(C3)))*100)-VLOOKUP((10^(LOG(C3)-INT(LOG(C3)))*100),E48_s:E48_f,1)<VLOOKUP((10^(LOG(C3)-INT(LOG(C3)))*100),E48_s:E48_f,2)-(10^(LOG(C3)-INT(LOG(C3)))*100),VLOOKUP((10^(LOG(C3)-INT(LOG(C3)))*100),E48_s:E48_f,1),VLOOKUP((10^(LOG(C3)-INT(LOG(C3)))*100),E48_s:E48_f,2)))*10^INT(LOG(C3))/100 -> 24.9 | E8: 470 | F8: 680 | G8: 110 | H8: 113 | J8: 1.2 | K8: 1.5
B9: Closest E96 Value | C9: =(IF((10^(LOG(C3)-INT(LOG(C3)))*100)-VLOOKUP((10^(LOG(C3)-INT(LOG(C3)))*100),E96_s:E96_f,1)<VLOOKUP((10^(LOG(C3)-INT(LOG(C3)))*100),E96_s:E96_f,2)-(10^(LOG(C3)-INT(LOG(C3)))*100),VLOOKUP((10^(LOG(C3)-INT(LOG(C3)))*100),E96_s:E96_f,1),VLOOKUP((10^(LOG(C3)-INT(LOG(C3)))*100),E96_s:E96_f,2)))*10^INT(LOG(C3))/100 -> 24.9 | E9: 680 | F9: 1000 | G9: 113 | H9: 115 | J9: 1.5 | K9: 1.8 | P9: Notes: | Q9: If I use the value in column K it rounds up
E10: E12 | G10: 115 | H10: 118 | J10: 1.8 | K10: 2.2 | Q10: If I use the value in column J it rounds down
E11: 100 | F11: 120 | G11: 118 | H11: 121 | J11: 2.2 | K11: 2.7
E12: 120 | F12: 150 | G12: 121 | H12: 124 | J12: 2.7 | K12: 3.3
E13: 150 | F13: 180 | G13: 124 | H13: 127 | J13: 3.3 | K13: 3.9
E14: 180 | F14: 220 | G14: 127 | H14: 130 | J14: 3.9 | K14: 4.7
E15: 220 | F15: 270 | G15: 130 | H15: 133 | J15: 4.7 | K15: 5.6
E16: 270 | F16: 330 | G16: 133 | H16: 137 | J16: 5.6 | K16: 6.8
E17: 330 | F17: 390 | G17: 137 | H17: 140 | J17: 6.8 | K17: 8.2
E18: 390 | F18: 470 | G18: 140 | H18: 143 | J18: 8.2 | K18: 10
E19: 470 | F19: 560 | G19: 143 | H19: 147 | J19: C values greater than 10nF
E20: 560 | F20: 680 | G20: 147 | H20: 150 | J20: 1 | K20: 1.5 | L20: =IF((10^(LOG(K3)-INT(LOG(K3))))-VLOOKUP((10^(LOG(K3)-INT(LOG(K3)))),C_s2:C_f2,1)<VLOOKUP((10^(LOG(K3)-INT(LOG(K3)))),C_s2:C_f2,2)-(10^(LOG(K3)-INT(LOG(K3)))),VLOOKUP((10^(LOG(K3)-INT(LOG(K3)))),C_s2:C_f2,1),VLOOKUP((10^(LOG(K3)-INT(LOG(K3)))),C_s2:C_f2,2)) -> 1.5
E21: 680 | F21: 820 | G21: 150 | H21: 154 | J21: 1.5 | K21: 2.2
E22: 820 | F22: 1000 | G22: 154 | H22: 158 | J22: 2.2 | K22: 3.3
E23: E24 | G23: 158 | H23: 162 | J23: 3.3 | K23: 4.7
E24: 100 | F24: 110 | G24: 162 | H24: 165 | J24: 4.7 | K24: 6.8
E25: 110 | F25: 120 | G25: 165 | H25: 169 | J25: 6.8 | K25: 10
E26: 120 | F26: 130 | G26: 169 | H26: 174
E27: 130 | F27: 150 | G27: 174 | H27: 178
E28: 150 | F28: 160 | G28: 178 | H28: 182
E29: 160 | F29: 180 | G29: 182 | H29: 187
E30: 180 | F30: 200 | G30: 187 | H30: 191
E31: 200 | F31: 220 | G31: 191 | H31: 196
E32: 220 | F32: 240 | G32: 196 | H32: 200
E33: 240 | F33: 270 | G33: 200 | H33: 205
E34: 270 | F34: 300 | G34: 205 | H34: 210
E35: 300 | F35: 330 | G35: 210 | H35: 215
E36: 330 | F36: 360 | G36: 215 | H36: 221
E37: 360 | F37: 390 | G37: 221 | H37: 226
E38: 390 | F38: 430 | G38: 226 | H38: 232
E39: 430 | F39: 470 | G39: 232 | H39: 237
E40: 470 | F40: 510 | G40: 237 | H40: 243
E41: 510 | F41: 560 | G41: 243 | H41: 249
E42: 560 | F42: 620 | G42: 249 | H42: 255
E43: 620 | F43: 680 | G43: 255 | H43: 261
E44: 680 | F44: 750 | G44: 261 | H44: 267
E45: 750 | F45: 820 | G45: 267 | H45: 274
E46: 820 | F46: 910 | G46: 274 | H46: 280
E47: 910 | F47: 1000 | G47: 280 | H47: 287
E48: E48 | G48: 287 | H48: 294
E49: 100 | F49: 105 | G49: 294 | H49: 301
E50: 105 | F50: 110 | G50: 301 | H50: 309
E51: 110 | F51: 115 | G51: 309 | H51: 316
E52: 115 | F52: 121 | G52: 316 | H52: 324
E53: 121 | F53: 127 | G53: 324 | H53: 332
E54: 127 | F54: 133 | G54: 332 | H54: 340
E55: 133 | F55: 140 | G55: 340 | H55: 348
E56: 140 | F56: 147 | G56: 348 | H56: 357
E57: 147 | F57: 154 | G57: 357 | H57: 365
E58: 154 | F58: 162 | G58: 365 | H58: 374
E59: 162 | F59: 169 | G59: 374 | H59: 383
E60: 169 | F60: 178 | G60: 383 | H60: 392
E61: 178 | F61: 187 | G61: 392 | H61: 402
E62: 187 | F62: 196 | G62: 402 | H62: 412
E63: 196 | F63: 205 | G63: 412 | H63: 422
E64: 205 | F64: 215 | G64: 422 | H64: 432
E65: 215 | F65: 226 | G65: 432 | H65: 442
E66: 226 | F66: 237 | G66: 442 | H66: 453
E67: 237 | F67: 249 | G67: 453 | H67: 464
E68: 249 | F68: 261 | G68: 464 | H68: 475
E69: 261 | F69: 274 | G69: 475 | H69: 487
E70: 274 | F70: 287 | G70: 487 | H70: 499
E71: 287 | F71: 301 | G71: 499 | H71: 511
E72: 301 | F72: 316 | G72: 511 | H72: 523
E73: 316 | F73: 332 | G73: 523 | H73: 536
E74: 332 | F74: 348 | G74: 536 | H74: 549
E75: 348 | F75: 365 | G75: 549 | H75: 562
E76: 365 | F76: 383 | G76: 562 | H76: 576
E77: 383 | F77: 402 | G77: 576 | H77: 590
E78: 402 | F78: 422 | G78: 590 | H78: 604
E79: 422 | F79: 442 | G79: 604 | H79: 619
E80: 442 | F80: 464 | G80: 619 | H80: 634
E81: 464 | F81: 487 | G81: 634 | H81: 649
E82: 487 | F82: 511 | G82: 649 | H82: 665
E83: 511 | F83: 536 | G83: 665 | H83: 681
E84: 536 | F84: 562 | G84: 681 | H84: 698
E85: 562 | F85: 590 | G85: 698 | H85: 715
E86: 590 | F86: 619 | G86: 715 | H86: 732
E87: 619 | F87: 649 | G87: 732 | H87: 750
E88: 649 | F88: 681 | G88: 750 | H88: 768
E89: 681 | F89: 715 | G89: 768 | H89: 787
E90: 715 | F90: 750 | G90: 787 | H90: 806
E91: 750 | F91: 787 | G91: 806 | H91: 825
E92: 787 | F92: 825 | G92: 825 | H92: 845
E93: 825 | F93: 866 | G93: 845 | H93: 866
E94: 866 | F94: 909 | G94: 866 | H94: 887
E95: 909 | F95: 953 | G95: 887 | H95: 909
E96: 953 | F96: 1000 | G96: 909 | H96: 931
G97: 931 | H97: 953
G98: 953 | H98: 976
G99: 976 | H99: 1000

Sheet Extra (hidden)
B2: Validation Options
B3: Open
B4: Complete
B5: Not Applicable
